Body,Body Name,Date,Transaction Number,Invoice Number,Amount,Supplier Name,Supplier ID ,VAT Registration Number ,Expense Area,Expense Type,Expense Code,Purchase Order
http://statistics.data.gov.uk/id/local-authority/29UP,Tonbridge & Malling Borough Council,12/6/2023,0011047334/1,11047334, 494.00,Disclosure & Barring Service,00865900,,Professional Fees,Licences - Fee Paying,H27SH000044001,
http://statistics.data.gov.uk/id/local-authority/29UP,Tonbridge & Malling Borough Council,12/6/2023,0011047335/1,11047335, 10.00,REDACTED PERSONAL DATA,01189400,,Other Expenses,Mayoral & Other Member Support,D29LX000048010,
http://statistics.data.gov.uk/id/local-authority/29UP,Tonbridge & Malling Borough Council,12/6/2023,0011047336/1,11047336, 1534.44,The Oyster Partnership,01196400,,Temporary Staff,Admin & Prop Sals&Overheads,D01AADA1111300,
http://statistics.data.gov.uk/id/local-authority/29UP,Tonbridge & Malling Borough Council,12/6/2023,0011047337/1,11047337, 412.80,Canon (UK) Limited,00298700,,Purchases - Paper,Printing,D22GA000040102,
http://statistics.data.gov.uk/id/local-authority/29UP,Tonbridge & Malling Borough Council,12/6/2023,0011047338/1,11047338, 209.75,Premier Group Recycling Ltd,01365300,,Confidential Waste,Cleaning & Security,D21FD000044009,
http://statistics.data.gov.uk/id/local-authority/29UP,Tonbridge & Malling Borough Council,12/6/2023,0011047339/1,11047339, 469.84,Canon (UK) Limited,00298700,,Purchases - Paper,Printing,D22GA000040102,
http://statistics.data.gov.uk/id/local-authority/29UP,Tonbridge & Malling Borough Council,12/6/2023,0011047340/1,11047340, 1474.94,Royal Mail,00086200,,Purchases,Mailsort Stock Account,K37BR000001002,
http://statistics.data.gov.uk/id/local-authority/29UP,Tonbridge & Malling Borough Council,12/6/2023,0011047340/2,11047340, 2.10,Royal Mail,00086200,,Purchases,Mailsort Stock Account,K37BR000001002,
http://statistics.data.gov.uk/id/local-authority/29UP,Tonbridge & Malling Borough Council,12/6/2023,0011047340/3,11047340, 23.58,Royal Mail,00086200,,Purchases,Mailsort Stock Account,K37BR000001002,
http://statistics.data.gov.uk/id/local-authority/29UP,Tonbridge & Malling Borough Council,12/6/2023,0011047342/1,11047342, 65.80,B&Q/Screwfix Direct(TradeUKAccount),00141300,,Cleaning & Domestic Supplies,Cleaning & Security,D21FD000026001,
http://statistics.data.gov.uk/id/local-authority/29UP,Tonbridge & Malling Borough Council,12/6/2023,0011047343/1,11047343, 393.00,Eryl Davies Veterinary Surgeon,01657600,,Professional Fees,Licences - Fee Paying,H27SH000044001,
http://statistics.data.gov.uk/id/local-authority/29UP,Tonbridge & Malling Borough Council,12/6/2023,0011047344/1,11047344, 449.00,Eryl Davies Veterinary Surgeon,01657600,,Professional Fees,Licences - Fee Paying,H27SH000044001,
http://statistics.data.gov.uk/id/local-authority/29UP,Tonbridge & Malling Borough Council,12/6/2023,0011047345/1,11047345, 725.00,Eryl Davies Veterinary Surgeon,01657600,,Professional Fees,Licences - Fee Paying,H27SH000044001,
http://statistics.data.gov.uk/id/local-authority/29UP,Tonbridge & Malling Borough Council,12/6/2023,0011047348/1,11047348, 24.15,Oasis Group  - Box-It South East,00966800,931579211,Purchases,Electoral Registration,D31MF000040101,
http://statistics.data.gov.uk/id/local-authority/29UP,Tonbridge & Malling Borough Council,12/6/2023,0011047349/1,11047349, 270.00,KKL & Co Ltd,01926000,,Contract Payments,UK Shared Prosperity Fund,P06FNFN4009904,
http://statistics.data.gov.uk/id/local-authority/29UP,Tonbridge & Malling Borough Council,12/6/2023,0011047350/1,11047350, 5000.00,The National Trust,00226500,,Economic Development & Regen,Eco Dev & Reg Gen Bus Support,D52TD000047027,
http://statistics.data.gov.uk/id/local-authority/29UP,Tonbridge & Malling Borough Council,12/6/2023,0011047351/1,11047351, 292.80,Premier Paper Group,01421800,,Purchases - Paper,Printing,D22GA000040102,
http://statistics.data.gov.uk/id/local-authority/29UP,Tonbridge & Malling Borough Council,12/6/2023,0011047352/1,11047352, 100.00,Fuller Long Planning and Heritage Consul,01883200,,BRREP Response - General,Gibson Building West,M15KBP50001997,
http://statistics.data.gov.uk/id/local-authority/29UP,Tonbridge & Malling Borough Council,12/6/2023,0011047353/1,11047353, 80.00,Gravesham Borough Council,01106000,204273500,Hospitality,Mayoral & Other Member Support,D29LX000048003,
http://statistics.data.gov.uk/id/local-authority/29UP,Tonbridge & Malling Borough Council,12/6/2023,0011047354/1,11047354, 318.80,KCS Education/CSG Global Education Ltd,01897200,408845925,Cleaning & Domestic Supplies,Cleaning & Security,D21FD000026001,110070633
http://statistics.data.gov.uk/id/local-authority/29UP,Tonbridge & Malling Borough Council,12/6/2023,0011047354/2,11047354, 51.96,KCS Education/CSG Global Education Ltd,01897200,408845925,Cleaning & Domestic Supplies,Cleaning & Security,D21FD000026001,110070633
http://statistics.data.gov.uk/id/local-authority/29UP,Tonbridge & Malling Borough Council,12/6/2023,0011047354/3,11047354, 395.88,KCS Education/CSG Global Education Ltd,01897200,408845925,Cleaning & Domestic Supplies,Cleaning & Security,D21FD000026001,110070633
http://statistics.data.gov.uk/id/local-authority/29UP,Tonbridge & Malling Borough Council,12/6/2023,0011047355/1,11047355, 112.00,East Sussex Fire Ltd,01843100,,Repairs & Mtce to Buildings,Homelessness,C01AATNHS20101,110070238
http://statistics.data.gov.uk/id/local-authority/29UP,Tonbridge & Malling Borough Council,12/6/2023,0011047356/1,11047356, 23.98,KCS Education/CSG Global Education Ltd,01897200,408845925,Cleaning & Domestic Supplies,Cleaning & Security,D21FD000026001,
http://statistics.data.gov.uk/id/local-authority/29UP,Tonbridge & Malling Borough Council,12/6/2023,0011047357/1,11047357, 180.00,PV Environmental Surveys,00987200,,BRREP Asbestos monitoring,Angel Centre,M15HAP30001993,110070616
http://statistics.data.gov.uk/id/local-authority/29UP,Tonbridge & Malling Borough Council,12/6/2023,0011047357/2,11047357, 180.00,PV Environmental Surveys,00987200,,BRREP Asbestos monitoring,Larkfield Leisure Centre,M15HDP30001993,110070616
http://statistics.data.gov.uk/id/local-authority/29UP,Tonbridge & Malling Borough Council,12/6/2023,0011047357/3,11047357, 180.00,PV Environmental Surveys,00987200,,BRREP Asbestos monitoring,Leis Man Poult Wood Golf Centr,M15HEP30001993,110070616
http://statistics.data.gov.uk/id/local-authority/29UP,Tonbridge & Malling Borough Council,12/6/2023,0011047357/4,11047357, 180.00,PV Environmental Surveys,00987200,,BRREP Asbestos monitoring,Tonbridge Farm Pavillion,M15HGP30001993,110070616
http://statistics.data.gov.uk/id/local-authority/29UP,Tonbridge & Malling Borough Council,12/6/2023,0011047357/5,11047357, 180.00,PV Environmental Surveys,00987200,,BRREP Asbestos monitoring,Gibson Building West,M15KBP30001993,110070616
http://statistics.data.gov.uk/id/local-authority/29UP,Tonbridge & Malling Borough Council,12/6/2023,0011047357/6,11047357, 180.00,PV Environmental Surveys,00987200,,BRREP Asbestos monitoring,Tonbridge Castle / CAB,M15KFP30001993,110070616
http://statistics.data.gov.uk/id/local-authority/29UP,Tonbridge & Malling Borough Council,12/6/2023,0011047357/7,11047357, 180.00,PV Environmental Surveys,00987200,,BRREP Asbestos monitoring,Shops & Maisonettes,M15NAP30001993,110070616
http://statistics.data.gov.uk/id/local-authority/29UP,Tonbridge & Malling Borough Council,12/6/2023,0011047358/1,11047358, 220.00,Baker Developments South East Ltd,01878900,446348183,BRREP Window/door repairs,Leis Man Poult Wood Golf Centr,M15HEP20001919,110070620
http://statistics.data.gov.uk/id/local-authority/29UP,Tonbridge & Malling Borough Council,12/6/2023,0011047359/1,11047359, 1336.00,Hadene Engineering Ltd,00041900,,BRREP Servicing - boilers,Larkfield Leisure Centre,M15HDP20001929,110070599
http://statistics.data.gov.uk/id/local-authority/29UP,Tonbridge & Malling Borough Council,12/6/2023,0011047360/1,11047360, 720.00,G C Industrial Heating Services,00578100,,BRREP Servicing - boilers,Tonbridge Swimming Pool,M15HBP20001929,110070221
http://statistics.data.gov.uk/id/local-authority/29UP,Tonbridge & Malling Borough Council,12/6/2023,0011047361/1,11047361, 500.00,G C Industrial Heating Services,00578100,,BRREP Servicing - Heating Syst,Leis Man Poult Wood Golf Centr,M15HEP20001934,110070224
http://statistics.data.gov.uk/id/local-authority/29UP,Tonbridge & Malling Borough Council,12/6/2023,0011047362/1,11047362, 475.00,Baker Developments South East Ltd,01878900,446348183,BRREP Response - General,Leis Man Poult Wood Golf Centr,M15HEP50001997,110070498
http://statistics.data.gov.uk/id/local-authority/29UP,Tonbridge & Malling Borough Council,12/6/2023,0011047363/1,11047363, 350.00,Baker Developments South East Ltd,01878900,446348183,BRREP Response - General,Leis Man Poult Wood Golf Centr,M15HEP50001997,110070499
http://statistics.data.gov.uk/id/local-authority/29UP,Tonbridge & Malling Borough Council,12/6/2023,0011047364/1,11047364, 2350.00,Baker Developments South East Ltd,01878900,446348183,BRREP External decoration,Pleasure Grounds & Open Spaces,M15HHP20001921,110070638
http://statistics.data.gov.uk/id/local-authority/29UP,Tonbridge & Malling Borough Council,12/6/2023,0011047365/1,11047365, 4750.00,Baker Developments South East Ltd,01878900,446348183,BRREP Window/door repairs,Tonbridge Cemetery,M15HJP20001919,110070637
http://statistics.data.gov.uk/id/local-authority/29UP,Tonbridge & Malling Borough Council,12/6/2023,0011047366/1,11047366, 2375.00,Loxton Installations Ltd,01278800,,BRREP IEE Testing,Gibson Building East,M15KGP30001991,110070418
http://statistics.data.gov.uk/id/local-authority/29UP,Tonbridge & Malling Borough Council,12/6/2023,0011047367/1,11047367, 13990.00,Morgana Systems Ltd,01920600,301746487,Initial Furniture & Equipment,Capital Renewals General,P06FAGR0309906,110070579
http://statistics.data.gov.uk/id/local-authority/29UP,Tonbridge & Malling Borough Council,12/6/2023,0011047368/1,11047368, 300.00,Chillmech Limited,00978700,,BRREP Servicing-Air Condition,Tonbridge Swimming Pool,M15HBP20001935,110070630
http://statistics.data.gov.uk/id/local-authority/29UP,Tonbridge & Malling Borough Council,12/6/2023,0011047369/1,11047369, 222.50,Chillmech Limited,00978700,,BRREP Servicing - air handling,Gibson Building East,M15KGP20001936,110070102
http://statistics.data.gov.uk/id/local-authority/29UP,Tonbridge & Malling Borough Council,12/6/2023,0011047370/1,11047370, 1517.75,C. S. Mitchell LTD,01704800,,Initiatives,UK Shared Prosperity Fund,D52TH000048135,
http://statistics.data.gov.uk/id/local-authority/29UP,Tonbridge & Malling Borough Council,12/6/2023,0012008905/1,12008905, 7.50,Softcat,01615300,,Delivery Expenses,Information Technology,D27KD000044069,410032507
http://statistics.data.gov.uk/id/local-authority/29UP,Tonbridge & Malling Borough Council,12/6/2023,0012008905/2,12008905, 37960.86,Softcat,01615300,,Initial Furniture & Equipment,Capital Renewals IT,P06FBFB2009906,410032507
http://statistics.data.gov.uk/id/local-authority/29UP,Tonbridge & Malling Borough Council,12/6/2023,0012008906/10,12008906, 9.00,O2 UK Ltd,01268000,,Mobile Telephones,Admin & Prop Sals&Overheads,D01AADA1245013,
http://statistics.data.gov.uk/id/local-authority/29UP,Tonbridge & Malling Borough Council,12/6/2023,0012008906/11,12008906, 3.00,O2 UK Ltd,01268000,,Mobile Telephones,Chief Exec Sals&Overheads,D01ACDC0045013,
http://statistics.data.gov.uk/id/local-authority/29UP,Tonbridge & Malling Borough Council,12/6/2023,0012008906/12,12008906, 3.00,O2 UK Ltd,01268000,,Mobile Telephones,Chief Exec Sals&Overheads,D01ACDC0145013,
http://statistics.data.gov.uk/id/local-authority/29UP,Tonbridge & Malling Borough Council,12/6/2023,0012008906/13,12008906, 3.00,O2 UK Ltd,01268000,,Mobile Telephones,Chief Exec Sals&Overheads,D01ACDC0245013,
http://statistics.data.gov.uk/id/local-authority/29UP,Tonbridge & Malling Borough Council,12/6/2023,0012008906/14,12008906, 3.00,O2 UK Ltd,01268000,,Mobile Telephones,Technical Sals&Overheads,D01AEDE0045013,
http://statistics.data.gov.uk/id/local-authority/29UP,Tonbridge & Malling Borough Council,12/6/2023,0012008906/15,12008906, 6.00,O2 UK Ltd,01268000,,Mobile Telephones,Technical Sals&Overheads,D01AEDE0145013,
http://statistics.data.gov.uk/id/local-authority/29UP,Tonbridge & Malling Borough Council,12/6/2023,0012008906/16,12008906, 9.20,O2 UK Ltd,01268000,,Mobile Telephones,Technical Sals&Overheads,D01AEDE0245013,
http://statistics.data.gov.uk/id/local-authority/29UP,Tonbridge & Malling Borough Council,12/6/2023,0012008906/17,12008906, 42.00,O2 UK Ltd,01268000,,Mobile Telephones,Technical Sals&Overheads,D01AEDE0445013,
http://statistics.data.gov.uk/id/local-authority/29UP,Tonbridge & Malling Borough Council,12/6/2023,0012008906/18,12008906, 3.00,O2 UK Ltd,01268000,,Mobile Telephones,Technical Sals&Overheads,D01AEDE0545013,
http://statistics.data.gov.uk/id/local-authority/29UP,Tonbridge & Malling Borough Council,12/6/2023,0012008906/19,12008906, 12.00,O2 UK Ltd,01268000,,Mobile Telephones,Finance Sals&Overheads,D01AFDF0045013,
http://statistics.data.gov.uk/id/local-authority/29UP,Tonbridge & Malling Borough Council,12/6/2023,0012008906/20,12008906, 6.00,O2 UK Ltd,01268000,,Mobile Telephones,Finance Sals&Overheads,D01AFDF0945013,
http://statistics.data.gov.uk/id/local-authority/29UP,Tonbridge & Malling Borough Council,12/6/2023,0012008906/21,12008906, 12.00,O2 UK Ltd,01268000,,Mobile Telephones,St Scene & Leis Sals&Overheads,D01AGDG0045013,
http://statistics.data.gov.uk/id/local-authority/29UP,Tonbridge & Malling Borough Council,12/6/2023,0012008906/22,12008906, 12.00,O2 UK Ltd,01268000,,Mobile Telephones,St Scene & Leis Sals&Overheads,D01AGDG0145013,
http://statistics.data.gov.uk/id/local-authority/29UP,Tonbridge & Malling Borough Council,12/6/2023,0012008906/23,12008906, 9.00,O2 UK Ltd,01268000,,Mobile Telephones,St Scene & Leis Sals&Overheads,D01AGDG0445013,
http://statistics.data.gov.uk/id/local-authority/29UP,Tonbridge & Malling Borough Council,12/6/2023,0012008906/24,12008906, 36.00,O2 UK Ltd,01268000,,Mobile Telephones,St Scene & Leis Sals&Overheads,D01AGDG2045013,
http://statistics.data.gov.uk/id/local-authority/29UP,Tonbridge & Malling Borough Council,12/6/2023,0012008906/25,12008906, 9.00,O2 UK Ltd,01268000,,Mobile Telephones,Planning Sals&Overheads,D01AJDJ0045013,
http://statistics.data.gov.uk/id/local-authority/29UP,Tonbridge & Malling Borough Council,12/6/2023,0012008906/26,12008906, 12.00,O2 UK Ltd,01268000,,Mobile Telephones,Planning Sals&Overheads,D01AJDJ0245013,
http://statistics.data.gov.uk/id/local-authority/29UP,Tonbridge & Malling Borough Council,12/6/2023,0012008906/27,12008906, 6.00,O2 UK Ltd,01268000,,Mobile Telephones,Legal Sals&Overheads,D01ARDR0045013,
http://statistics.data.gov.uk/id/local-authority/29UP,Tonbridge & Malling Borough Council,12/6/2023,0012008906/28,12008906, 12.00,O2 UK Ltd,01268000,,Mobile Telephones,Legal Sals&Overheads,D01ARDR0445013,
http://statistics.data.gov.uk/id/local-authority/29UP,Tonbridge & Malling Borough Council,12/6/2023,0012008906/29,12008906, 3.00,O2 UK Ltd,01268000,,Mobile Telephones,Legal Sals&Overheads,D01ARDR0745013,
http://statistics.data.gov.uk/id/local-authority/29UP,Tonbridge & Malling Borough Council,12/6/2023,0012008906/30,12008906, 3.00,O2 UK Ltd,01268000,,Mobile Telephones,Env Hlth & Hsg Sals&Overheads,D01AVDV0045013,
http://statistics.data.gov.uk/id/local-authority/29UP,Tonbridge & Malling Borough Council,12/6/2023,0012008906/31,12008906, 9.00,O2 UK Ltd,01268000,,Mobile Telephones,Env Hlth & Hsg Sals&Overheads,D01AVDV0145013,
http://statistics.data.gov.uk/id/local-authority/29UP,Tonbridge & Malling Borough Council,12/6/2023,0012008906/32,12008906, 6.00,O2 UK Ltd,01268000,,Mobile Telephones,Env Hlth & Hsg Sals&Overheads,D01AVDV0345013,
http://statistics.data.gov.uk/id/local-authority/29UP,Tonbridge & Malling Borough Council,12/6/2023,0012008906/33,12008906, 3.00,O2 UK Ltd,01268000,,Mobile Telephones,Env Hlth & Hsg Sals&Overheads,D01AVDV0745013,
http://statistics.data.gov.uk/id/local-authority/29UP,Tonbridge & Malling Borough Council,12/6/2023,0012008906/34,12008906, 6.00,O2 UK Ltd,01268000,,Mobile Telephones,Env Hlth & Hsg Sals&Overheads,D01AVDV0945013,
http://statistics.data.gov.uk/id/local-authority/29UP,Tonbridge & Malling Borough Council,12/6/2023,0012008906/35,12008906, 9.30,O2 UK Ltd,01268000,,Mobile Telephones,Customer Services,D23CS000045013,
http://statistics.data.gov.uk/id/local-authority/29UP,Tonbridge & Malling Borough Council,12/6/2023,0012008906/36,12008906, 3.00,O2 UK Ltd,01268000,,Mobile Telephones,Tonbridge Gateway,D23TG000045013,
http://statistics.data.gov.uk/id/local-authority/29UP,Tonbridge & Malling Borough Council,12/6/2023,0012008906/37,12008906, 627.00,O2 UK Ltd,01268000,,Leased Lines & Modems,Information Technology,D27KD000045011,
http://statistics.data.gov.uk/id/local-authority/29UP,Tonbridge & Malling Borough Council,12/6/2023,0012008906/38,12008906, 3.00,O2 UK Ltd,01268000,,Mobile Telephones,Mayoral & Other Member Support,D29LX000045013,
http://statistics.data.gov.uk/id/local-authority/29UP,Tonbridge & Malling Borough Council,12/6/2023,0012008906/39,12008906, 3.00,O2 UK Ltd,01268000,,Emergency Out of Hours Recharg,Refuse Collection,H20SA000045030,
http://statistics.data.gov.uk/id/local-authority/29UP,Tonbridge & Malling Borough Council,12/6/2023,0012008906/40,12008906, 3.00,O2 UK Ltd,01268000,,Emergency Out of Hours Recharg,Street Scene,H23SD000045030,
http://statistics.data.gov.uk/id/local-authority/29UP,Tonbridge & Malling Borough Council,12/6/2023,0012008906/7,12008906, 3.00,O2 UK Ltd,01268000,,Telephones - General,Open Spaces & Amenity Areas,B22LE000045010,
http://statistics.data.gov.uk/id/local-authority/29UP,Tonbridge & Malling Borough Council,12/6/2023,0012008906/8,12008906, 3.00,O2 UK Ltd,01268000,,Mobile Telephones,Admin & Prop Sals&Overheads,D01AADA0045013,
http://statistics.data.gov.uk/id/local-authority/29UP,Tonbridge & Malling Borough Council,12/6/2023,0012008906/9,12008906, 3.00,O2 UK Ltd,01268000,,Mobile Telephones,Admin & Prop Sals&Overheads,D01AADA1045013,
http://statistics.data.gov.uk/id/local-authority/29UP,Tonbridge & Malling Borough Council,12/6/2023,0012008907/1,12008907, 38.37,Bytes Software Services,01676900,823818226,Software Hire & Support,Information Technology,D27KD000044059,410032535
http://statistics.data.gov.uk/id/local-authority/29UP,Tonbridge & Malling Borough Council,12/6/2023,0012008908/1,12008908, 16.47,Esendex Limited,01008900,,Leased Lines & Modems,Information Technology,D27KD000045011,
http://statistics.data.gov.uk/id/local-authority/29UP,Tonbridge & Malling Borough Council,12/6/2023,0012008909/1,12008909, 10.73,Daisy Communications,01068100,,Telephones - Rentals,General Admin Telephones,D24GT000045005,
http://statistics.data.gov.uk/id/local-authority/29UP,Tonbridge & Malling Borough Council,12/6/2023,0012008909/2,12008909, 285.76,Daisy Communications,01068100,,Telephones - Call Costs,General Admin Telephones,D24GT000045006,
http://statistics.data.gov.uk/id/local-authority/29UP,Tonbridge & Malling Borough Council,12/6/2023,0012008909/3,12008909, 95.92,Daisy Communications,01068100,,Leased Lines & Modems,Information Technology,D27KD000045011,
http://statistics.data.gov.uk/id/local-authority/29UP,Tonbridge & Malling Borough Council,12/6/2023,0012008909/4,12008909, 74.46,Daisy Communications,01068100,,Maintenance - General,Security Services Management,E09GA000040135,
http://statistics.data.gov.uk/id/local-authority/29UP,Tonbridge & Malling Borough Council,12/6/2023,0012008910/1,12008910, 1578.99,NTT Cloud Communications UK Ltd,01794600,,Software Hire & Support,Information Technology,D27KD000044059,
http://statistics.data.gov.uk/id/local-authority/29UP,Tonbridge & Malling Borough Council,12/6/2023,0012008911/1,12008911, 218.53,KCS - KCC,00054200,,Leasing Charges,Multi Function Devices,D22GB000044038,
http://statistics.data.gov.uk/id/local-authority/29UP,Tonbridge & Malling Borough Council,12/6/2023,0012008912/1,12008912, 218.53,KCS - KCC,00054200,,Leasing Charges,Multi Function Devices,D22GB000044038,
http://statistics.data.gov.uk/id/local-authority/29UP,Tonbridge & Malling Borough Council,12/6/2023,0012008913/1,12008913, 218.53,KCS - KCC,00054200,,Leasing Charges,Multi Function Devices,D22GB000044038,
http://statistics.data.gov.uk/id/local-authority/29UP,Tonbridge & Malling Borough Council,12/6/2023,0012008914/1,12008914, 218.53,KCS - KCC,00054200,,Leasing Charges,Multi Function Devices,D22GB000044038,
http://statistics.data.gov.uk/id/local-authority/29UP,Tonbridge & Malling Borough Council,12/6/2023,0012008915/1,12008915, 364.10,KCS - KCC,00054200,,Software Hire & Support,Information Technology,D27KD000044059,
http://statistics.data.gov.uk/id/local-authority/29UP,Tonbridge & Malling Borough Council,12/6/2023,0012008915/2,12008915, 59.70,KCS - KCC,00054200,,Software Hire & Support,Information Technology,D27KD000044059,
http://statistics.data.gov.uk/id/local-authority/29UP,Tonbridge & Malling Borough Council,12/6/2023,0021039010/3,21039010, 1629.25,Technogym UK Ltd,00900000,,General,Angel Centre,B01AA000054012,
http://statistics.data.gov.uk/id/local-authority/29UP,Tonbridge & Malling Borough Council,12/6/2023,0021039012/1,21039012, 23064.02,Landscape Services Ltd,00057600,,Grounds Maintenance Contract,Sports Grounds,B13ET000050103,
http://statistics.data.gov.uk/id/local-authority/29UP,Tonbridge & Malling Borough Council,12/6/2023,0021039012/10,21039012, 190.43,Landscape Services Ltd,00057600,,Grounds Maintenance Contract,Churchyards St Stephens,B28MY000050103,
http://statistics.data.gov.uk/id/local-authority/29UP,Tonbridge & Malling Borough Council,12/6/2023,0021039012/11,21039012, 191.95,Landscape Services Ltd,00057600,,Grounds Maintenance Contract,Grounds,D21FF000050103,
http://statistics.data.gov.uk/id/local-authority/29UP,Tonbridge & Malling Borough Council,12/6/2023,0021039012/12,21039012, 320.54,Landscape Services Ltd,00057600,,Maintenance of Grounds,Parking Off-Street,E10HA000020402,
http://statistics.data.gov.uk/id/local-authority/29UP,Tonbridge & Malling Borough Council,12/6/2023,0021039012/13,21039012, 1148.71,Landscape Services Ltd,00057600,,Maintenance of Grounds,Parking Off-Street,E10HAE00120402,
http://statistics.data.gov.uk/id/local-authority/29UP,Tonbridge & Malling Borough Council,12/6/2023,0021039012/14,21039012, 108.41,Landscape Services Ltd,00057600,,Maintenance of Grounds,Parking Off-Street,E10HAE00220402,
http://statistics.data.gov.uk/id/local-authority/29UP,Tonbridge & Malling Borough Council,12/6/2023,0021039012/15,21039012, 98.31,Landscape Services Ltd,00057600,,Maintenance of Grounds,Parking Off-Street,E10HAE00320402,
http://statistics.data.gov.uk/id/local-authority/29UP,Tonbridge & Malling Borough Council,12/6/2023,0021039012/16,21039012, 24.52,Landscape Services Ltd,00057600,,Maintenance of Grounds,Parking Off-Street,E10HAE00420402,
http://statistics.data.gov.uk/id/local-authority/29UP,Tonbridge & Malling Borough Council,12/6/2023,0021039012/17,21039012, 0.63,Landscape Services Ltd,00057600,,Maintenance of Grounds,Parking Off-Street,E10HAE00520402,
http://statistics.data.gov.uk/id/local-authority/29UP,Tonbridge & Malling Borough Council,12/6/2023,0021039012/18,21039012, 68.63,Landscape Services Ltd,00057600,,Maintenance of Grounds,Parking Off-Street,E10HAE00620402,
http://statistics.data.gov.uk/id/local-authority/29UP,Tonbridge & Malling Borough Council,12/6/2023,0021039012/19,21039012, 160.24,Landscape Services Ltd,00057600,,Maintenance of Grounds,Parking Off-Street,E10HAE01020402,
http://statistics.data.gov.uk/id/local-authority/29UP,Tonbridge & Malling Borough Council,12/6/2023,0021039012/2,21039012, 8238.89,Landscape Services Ltd,00057600,,Grounds Maintenance Contract,Tonbridge Castle Grounds,B22LB000050103,
http://statistics.data.gov.uk/id/local-authority/29UP,Tonbridge & Malling Borough Council,12/6/2023,0021039012/20,21039012, 3.55,Landscape Services Ltd,00057600,,Maintenance of Grounds,Parking Off-Street,E10HAE01220402,
http://statistics.data.gov.uk/id/local-authority/29UP,Tonbridge & Malling Borough Council,12/6/2023,0021039012/21,21039012, 7.83,Landscape Services Ltd,00057600,,Maintenance of Grounds,Parking Off-Street,E10HAE01320402,
http://statistics.data.gov.uk/id/local-authority/29UP,Tonbridge & Malling Borough Council,12/6/2023,0021039012/22,21039012, 32.60,Landscape Services Ltd,00057600,,Maintenance of Grounds,Parking Off-Street,E10HAE01520402,
http://statistics.data.gov.uk/id/local-authority/29UP,Tonbridge & Malling Borough Council,12/6/2023,0021039012/23,21039012, 63.69,Landscape Services Ltd,00057600,,Maintenance of Grounds,Parking Off-Street,E10HAE01620402,
http://statistics.data.gov.uk/id/local-authority/29UP,Tonbridge & Malling Borough Council,12/6/2023,0021039012/24,21039012, 25.88,Landscape Services Ltd,00057600,,Maintenance of Grounds,Parking Off-Street,E10HAE01720402,
http://statistics.data.gov.uk/id/local-authority/29UP,Tonbridge & Malling Borough Council,12/6/2023,0021039012/25,21039012, 15.90,Landscape Services Ltd,00057600,,Maintenance of Grounds,Parking Off-Street,E10HAE02120402,
http://statistics.data.gov.uk/id/local-authority/29UP,Tonbridge & Malling Borough Council,12/6/2023,0021039012/26,21039012, 25.32,Landscape Services Ltd,00057600,,Maintenance of Grounds,Parking Off-Street,E10HAE02320402,
http://statistics.data.gov.uk/id/local-authority/29UP,Tonbridge & Malling Borough Council,12/6/2023,0021039012/27,21039012, 97.05,Landscape Services Ltd,00057600,,Maintenance of Grounds,Parking Off-Street,E10HAE02820402,
http://statistics.data.gov.uk/id/local-authority/29UP,Tonbridge & Malling Borough Council,12/6/2023,0021039012/28,21039012, 26.28,Landscape Services Ltd,00057600,,Maintenance of Grounds,Parking Off-Street,E10HAE04020402,
http://statistics.data.gov.uk/id/local-authority/29UP,Tonbridge & Malling Borough Council,12/6/2023,0021039012/29,21039012, 86.65,Landscape Services Ltd,00057600,,Maintenance of Grounds,Parking Off-Street,E10HAE04520402,
http://statistics.data.gov.uk/id/local-authority/29UP,Tonbridge & Malling Borough Council,12/6/2023,0021039012/3,21039012, 62.73,Landscape Services Ltd,00057600,,Trade Refuse Charges,Haysden Country Park,B22LC000044008,
http://statistics.data.gov.uk/id/local-authority/29UP,Tonbridge & Malling Borough Council,12/6/2023,0021039012/4,21039012, 538.16,Landscape Services Ltd,00057600,,Litter Collection,Haysden Country Park,B22LC000044061,
http://statistics.data.gov.uk/id/local-authority/29UP,Tonbridge & Malling Borough Council,12/6/2023,0021039012/5,21039012, 1849.86,Landscape Services Ltd,00057600,,Grounds Maintenance Contract,Haysden Country Park,B22LC000050103,
http://statistics.data.gov.uk/id/local-authority/29UP,Tonbridge & Malling Borough Council,12/6/2023,0021039012/6,21039012, 645.29,Landscape Services Ltd,00057600,,Grounds Maintenance Contract,Haysden Country Park,B22LC000050103,
http://statistics.data.gov.uk/id/local-authority/29UP,Tonbridge & Malling Borough Council,12/6/2023,0021039012/7,21039012, 14164.79,Landscape Services Ltd,00057600,,Grounds Maintenance Contract,Open Spaces & Amenity Areas,B22LE000050103,
http://statistics.data.gov.uk/id/local-authority/29UP,Tonbridge & Malling Borough Council,12/6/2023,0021039012/8,21039012, 5103.55,Landscape Services Ltd,00057600,,Grounds Maintenance Contract,Cemetery,B26MP000050103,
http://statistics.data.gov.uk/id/local-authority/29UP,Tonbridge & Malling Borough Council,12/6/2023,0021039012/9,21039012, 256.67,Landscape Services Ltd,00057600,,Grounds Maintenance Contract,Churchyards St Peter & St Paul,B28MX000050103,
http://statistics.data.gov.uk/id/local-authority/29UP,Tonbridge & Malling Borough Council,12/6/2023,0022028297/1,22028297, 1343.73,Waste Way (Southern Ltd),01923700,,Contract Payments,Street Scene,H23SD000054001,220003410
http://statistics.data.gov.uk/id/local-authority/29UP,Tonbridge & Malling Borough Council,12/6/2023,0022028298/3,22028298, 15213.16,Urbaser LTD,01718800,,Contract Payments,Refuse Collection,H20SA000054001,
http://statistics.data.gov.uk/id/local-authority/29UP,Tonbridge & Malling Borough Council,12/6/2023,0022028298/4,22028298, 6470.20,Urbaser LTD,01718800,,Contract Payments,Street Scene,H23SD000054001,
http://statistics.data.gov.uk/id/local-authority/29UP,Tonbridge & Malling Borough Council,12/6/2023,0022028298/5,22028298, 280.10,Urbaser LTD,01718800,,Contract Payments,Dry Recycling,H34SR000054001,
http://statistics.data.gov.uk/id/local-authority/29UP,Tonbridge & Malling Borough Council,12/6/2023,0022028298/7,22028298, 15058.65,Urbaser LTD,01718800,,Contract Payments,Garden Waste Recycling,H34ST000054001,
http://statistics.data.gov.uk/id/local-authority/29UP,Tonbridge & Malling Borough Council,12/6/2023,0022028299/1,22028299, 615.00,Town & Country Housing Group,01385400,,Countywide DFG Project,Private Sector Housing Renewal,C03BD000044031,
http://statistics.data.gov.uk/id/local-authority/29UP,Tonbridge & Malling Borough Council,12/6/2023,0022028300/3,22028300, 16.45,Octopus Energy,01895300,,Electricity,Homelessness,C01AATNHS21002,
http://statistics.data.gov.uk/id/local-authority/29UP,Tonbridge & Malling Borough Council,12/6/2023,0022028301/1,22028301, 16302.00,Craemer UK LTD,01616400,,Initial Furniture & Equipment,Refuse Bins Growth/Replacement,P02DA000009906,220003416
http://statistics.data.gov.uk/id/local-authority/29UP,Tonbridge & Malling Borough Council,12/6/2023,0022028302/1,22028302, 16302.00,Craemer UK LTD,01616400,,Initial Furniture & Equipment,Green Waste Bin Growth/Replace,P02BC000009906,220003418
http://statistics.data.gov.uk/id/local-authority/29UP,Tonbridge & Malling Borough Council,12/6/2023,0022028303/3,22028303, 105.54,Premier Inn,01217400,,Temporary Accommodation,Homelessness,C01AA000044051,
http://statistics.data.gov.uk/id/local-authority/29UP,Tonbridge & Malling Borough Council,12/6/2023,0022028304/1,22028304, 1.00,REDACTED PERSONAL DATA,01055600,,Food Sampling,Food & Safety - Food Safety,H35SX000054011,
http://statistics.data.gov.uk/id/local-authority/29UP,Tonbridge & Malling Borough Council,12/6/2023,0022028306/1,22028306, 42.18,Biffa Waste Services Ltd,01284500,,Trade Refuse Charges,Cleaning & Security,D21FD000044008,
http://statistics.data.gov.uk/id/local-authority/29UP,Tonbridge & Malling Borough Council,12/6/2023,0022028307/1,22028307, 490.00,Countrystyle Group,00835900,781981681,Collection of Card,Dry Recycling,H34SR000054008,
http://statistics.data.gov.uk/id/local-authority/29UP,Tonbridge & Malling Borough Council,12/6/2023,0022028308/1,22028308, 300.00,Craemer UK LTD,01616400,,Initial Furniture & Equipment,Refuse Bins Growth/Replacement,P02DA000009906,220003416
http://statistics.data.gov.uk/id/local-authority/29UP,Tonbridge & Malling Borough Council,12/6/2023,0022028309/1,22028309, 400.00,Green Recycling LTD,01563000,,Paper Recycling,Dry Recycling,H34SR000054024,
http://statistics.data.gov.uk/id/local-authority/29UP,Tonbridge & Malling Borough Council,12/6/2023,0022028310/1,22028310, 3116.71,Kent County Council,00322500,,Energy Efficiency Initiatives,Private Sector Housing Renewal,C03BD000044232,
http://statistics.data.gov.uk/id/local-authority/29UP,Tonbridge & Malling Borough Council,12/6/2023,0022028311/1,22028311, 1887.25,Specialist Hygiene Services,01466100,,Cleaning & Domestic Supplies,Haysden Country Park,B22LC000026001,
http://statistics.data.gov.uk/id/local-authority/29UP,Tonbridge & Malling Borough Council,12/6/2023,0022028311/2,22028311, 3636.05,Specialist Hygiene Services,01466100,,Contract Payments,Public Conveniences,H22SC000054001,
http://statistics.data.gov.uk/id/local-authority/29UP,Tonbridge & Malling Borough Council,12/6/2023,0022028312/1,22028312, 96.36,British Gas Services LTD,01260000,,Electricity,Homelessness,C01AAMAUN21002,
http://statistics.data.gov.uk/id/local-authority/29UP,Tonbridge & Malling Borough Council,12/6/2023,0022028313/1,22028313, 239.74,British Gas Services LTD,01260000,,Electricity,Homelessness,C01AAMAUN21002,
http://statistics.data.gov.uk/id/local-authority/29UP,Tonbridge & Malling Borough Council,12/6/2023,0031019876/3,31019876, 2297.31,Marston,01485000,,Adjudication & Enforcement Ser,Parking Off-Street,E10HA000044230,
http://statistics.data.gov.uk/id/local-authority/29UP,Tonbridge & Malling Borough Council,12/6/2023,0031019877/1,31019877, 485.00,SKF Contractors Ltd,00092000,621768141,Premises Repairs & Maintenance,Parking Off-Street,E10HA000020601,310043182
http://statistics.data.gov.uk/id/local-authority/29UP,Tonbridge & Malling Borough Council,12/6/2023,0031019878/1,31019878, 710.00,Archway Highway Services Ltd,01398000,,Maintenance of Grounds,Haysden Country Park,B22LCCARP20402,210057456
http://statistics.data.gov.uk/id/local-authority/29UP,Tonbridge & Malling Borough Council,12/6/2023,0031019879/1,31019879, 400.00,Arnold & Court Ltd,01411300,,Contract Payments,Boro Drainage & Land Drainage,E20MA000054001,310043120
http://statistics.data.gov.uk/id/local-authority/29UP,Tonbridge & Malling Borough Council,12/6/2023,0031019880/1,31019880, 425.00,Arnold & Court Ltd,01411300,,Winter Maintenance,Parking Off-Street,E10HA000020701,310043178
http://statistics.data.gov.uk/id/local-authority/29UP,Tonbridge & Malling Borough Council,12/6/2023,0031019880/2,31019880, 400.00,Arnold & Court Ltd,01411300,,Winter Maintenance,Parking Off-Street,E10HA000020701,310043178
http://statistics.data.gov.uk/id/local-authority/29UP,Tonbridge & Malling Borough Council,12/6/2023,0031019881/1,31019881, 400.00,Arnold & Court Ltd,01411300,,Repair & Mtce of Fixed Plant,Boro Highways & Emergency Oper,E01AA000020501,310043177
http://statistics.data.gov.uk/id/local-authority/29UP,Tonbridge & Malling Borough Council,12/6/2023,0031019881/2,31019881, 80.00,Arnold & Court Ltd,01411300,,Repair & Mtce of Fixed Plant,Boro Highways & Emergency Oper,E01AA000020501,310043177
http://statistics.data.gov.uk/id/local-authority/29UP,Tonbridge & Malling Borough Council,12/6/2023,0031019882/1,31019882, 450.00,Arnold & Court Ltd,01411300,,Repair & Mtce of Fixed Plant,Boro Highways & Emergency Oper,E01AA000020501,310043170
http://statistics.data.gov.uk/id/local-authority/29UP,Tonbridge & Malling Borough Council,12/6/2023,0031019883/1,31019883, 296.50,Arnold & Court Ltd,01411300,,Premises Repairs & Maintenance,Parking Off-Street,E10HA000020601,310043162
http://statistics.data.gov.uk/id/local-authority/29UP,Tonbridge & Malling Borough Council,12/6/2023,0031019884/1,31019884, 200.00,Arnold & Court Ltd,01411300,,Sandbags,Civil Contingencies,D33NA000040128,310043160
http://statistics.data.gov.uk/id/local-authority/29UP,Tonbridge & Malling Borough Council,12/6/2023,0031019885/1,31019885, 1560.53,CDER Group,01773300,,Adjudication & Enforcement Ser,Parking Off-Street,E10HA000044230,
http://statistics.data.gov.uk/id/local-authority/29UP,Tonbridge & Malling Borough Council,12/6/2023,0031019886/1,31019886, 4645.60,Countrystyle Group,00835900,781981681,Plastic Recycling,Dry Recycling,H34SR000054019,
http://statistics.data.gov.uk/id/local-authority/29UP,Tonbridge & Malling Borough Council,12/6/2023,0031019887/1,31019887, 7925.00,DSSL Group Ltd,01839500,,Tonbridge Christmas Lighting,Eco Dev & Reg Ton Chris Light,D52TF000047015,210057363
http://statistics.data.gov.uk/id/local-authority/29UP,Tonbridge & Malling Borough Council,12/6/2023,0031019888/1,31019888, 2077.00,Hays Specialist Recruitment Limited,01879200,773695871,Temporary Staff,Planning Sals&Overheads,D01AJDJ0111300,
http://statistics.data.gov.uk/id/local-authority/29UP,Tonbridge & Malling Borough Council,12/6/2023,0031019889/1,31019889, 93.24,Shell U.K. Oil Products Limited,01673300,,"Petrol, Diesel & Oil",Parking Off-Street,E10HA000030106,
http://statistics.data.gov.uk/id/local-authority/29UP,Tonbridge & Malling Borough Council,12/6/2023,0031019889/2,31019889, 93.24,Shell U.K. Oil Products Limited,01673300,,"Petrol, Diesel & Oil",Parking On-Street,E10HD000030106,
http://statistics.data.gov.uk/id/local-authority/29UP,Tonbridge & Malling Borough Council,12/6/2023,0031019890/1,31019890, 2982.00,Tonbridge & Malling Leisure Trust,01469100,,Ticket Refunds - Lower Castle,Parking Off-Street,E10HAE01344199,
http://statistics.data.gov.uk/id/local-authority/29UP,Tonbridge & Malling Borough Council,12/6/2023,0032010590/3,32010590, 2037.75,Vivid Resourcing,01773700,,Temporary Staff,Planning Sals&Overheads,D01AJDJ0111300,
http://statistics.data.gov.uk/id/local-authority/29UP,Tonbridge & Malling Borough Council,12/6/2023,0032010591/3,32010591, 1727.60,The Oyster Partnership,01196400,,Temporary Staff,Planning Sals&Overheads,D01AJDJ0111300,
http://statistics.data.gov.uk/id/local-authority/29UP,Tonbridge & Malling Borough Council,12/6/2023,0032010592/3,32010592, 1606.50,The Oyster Partnership,01196400,,Temporary Staff,Planning Sals&Overheads,D01AJDJ0111300,
http://statistics.data.gov.uk/id/local-authority/29UP,Tonbridge & Malling Borough Council,12/6/2023,0032010596/1,32010596, 1360.00,Hays Specialist Recruitment Limited,01879200,773695871,Temporary Staff,Planning Sals&Overheads,D01AJDJ0311300,
http://statistics.data.gov.uk/id/local-authority/29UP,Tonbridge & Malling Borough Council,12/6/2023,0032010597/1,32010597, 224.91,KM Media Group Ltd,00053900,,Advertising General,Development Management,A01ABZ99944216,320003565
http://statistics.data.gov.uk/id/local-authority/29UP,Tonbridge & Malling Borough Council,12/6/2023,0032010598/1,32010598, 50.00,KCS Education/CSG Global Education Ltd,01897200,408845925,Health General,Planning Sals&Overheads,D01AJ000044049,320003572
http://statistics.data.gov.uk/id/local-authority/29UP,Tonbridge & Malling Borough Council,12/6/2023,0032010598/2,32010598, 928.00,KCS Education/CSG Global Education Ltd,01897200,408845925,Health General,Planning Sals&Overheads,D01AJ000044049,320003572
http://statistics.data.gov.uk/id/local-authority/29UP,Tonbridge & Malling Borough Council,12/6/2023,0032010599/1,32010599, 3415.54,Kent County Council,00322500,,Development of Local Plan,Development of Local Plan,A01AE000044023,320003552
http://statistics.data.gov.uk/id/local-authority/29UP,Tonbridge & Malling Borough Council,12/6/2023,0032010600/1,32010600, 2025.00,G2 Recruitment Solutions,01786000,,Temporary Staff,Planning Sals&Overheads,D01AJDJ0011300,
http://statistics.data.gov.uk/id/local-authority/29UP,Tonbridge & Malling Borough Council,12/6/2023,0032010601/1,32010601, 100.00,Environment Agency,00418100,,Development of Local Plan,Development of Local Plan,A01AE000044023,320003400
http://statistics.data.gov.uk/id/local-authority/29UP,Tonbridge & Malling Borough Council,12/6/2023,0032010601/2,32010601, 50.00,Environment Agency,00418100,,Development of Local Plan,Development of Local Plan,A01AE000044023,320003400
http://statistics.data.gov.uk/id/local-authority/29UP,Tonbridge & Malling Borough Council,12/6/2023,0032010602/1,32010602, 1578.38,Carrington West Limited,01844500,,Temporary Staff,Planning Sals&Overheads,D01AJDJ0111300,
http://statistics.data.gov.uk/id/local-authority/29UP,Tonbridge & Malling Borough Council,12/6/2023,0032010603/1,32010603, 1410.00,Carrington West Limited,01844500,,Temporary Staff,Planning Sals&Overheads,D01AJDJ0111300,
http://statistics.data.gov.uk/id/local-authority/29UP,Tonbridge & Malling Borough Council,12/6/2023,0041036113/1,41036113, 18754.00,REDACTED PERSONAL DATA,01206000,,Charitable / Voluntary Organis,Grants & Payments to Vol Orgn,D37PACV1947005,
http://statistics.data.gov.uk/id/local-authority/29UP,Tonbridge & Malling Borough Council,12/6/2023,0041036114/1,41036114, 10000.00,Tonbridge Baptist Church,00401200,,Charitable / Voluntary Organis,Grants & Payments to Vol Orgn,D37PACV1947005,
http://statistics.data.gov.uk/id/local-authority/29UP,Tonbridge & Malling Borough Council,12/6/2023,0041036115/1,41036115, 20.00,Computershare Voucher Services,01212600,,Childcare Scheme,Finance Sals&Overheads,D01AFDF0911136,
http://statistics.data.gov.uk/id/local-authority/29UP,Tonbridge & Malling Borough Council,12/6/2023,0041036115/2,41036115, 1.40,Computershare Voucher Services,01212600,,National Insurance,Finance Sals&Overheads,D01AFDF0911191,
http://statistics.data.gov.uk/id/local-authority/29UP,Tonbridge & Malling Borough Council,12/6/2023,0041036115/3,41036115, 20.00,Computershare Voucher Services,01212600,,Childcare Scheme,Env Hlth & Hsg Sals&Overheads,D01AVDV0211136,
http://statistics.data.gov.uk/id/local-authority/29UP,Tonbridge & Malling Borough Council,12/6/2023,0041036115/4,41036115, 1.40,Computershare Voucher Services,01212600,,National Insurance,Env Hlth & Hsg Sals&Overheads,D01AVDV0211191,
http://statistics.data.gov.uk/id/local-authority/29UP,Tonbridge & Malling Borough Council,12/6/2023,0051008874/3,51008874, 25.00,Town & Country Planning Association,01403200,,Ext Fees/Prof & Tech,Training,D10DCDJ0013561,
http://statistics.data.gov.uk/id/local-authority/29UP,Tonbridge & Malling Borough Council,12/6/2023,0051008875/1,51008875, 300.00,Irrv,00050300,,Ext Fees/Prof & Tech,Training,D10DCDF1113561,510010661
http://statistics.data.gov.uk/id/local-authority/29UP,Tonbridge & Malling Borough Council,12/6/2023,0051008876/1,51008876, 600.00,NEC Software Solutions UK Ltd,01073900,202159745,Ext Fees/Prof & Tech,Training,D10DCDF1113561,510010659
http://statistics.data.gov.uk/id/local-authority/29UP,Tonbridge & Malling Borough Council,12/6/2023,0051008877/1,51008877, 130.00,HB Info Ltd,01478600,880720227,Ext Fees/Prof & Tech,Training,D10DCDF1113561,510010638
http://statistics.data.gov.uk/id/local-authority/29UP,Tonbridge & Malling Borough Council,12/6/2023,0051008878/1,51008878, 1975.00,Haymarket Media Group Limited,01197800,,Recruitment Advertising,Recruitment Expenses,D10DADJ0013110,
http://statistics.data.gov.uk/id/local-authority/29UP,Tonbridge & Malling Borough Council,12/13/2023,0011047371/1,11047371, 494.00,Disclosure & Barring Service,00865900,,Professional Fees,Licences - Fee Paying,H27SH000044001,
http://statistics.data.gov.uk/id/local-authority/29UP,Tonbridge & Malling Borough Council,12/13/2023,0011047372/3,11047372, 18.39,REDACTED PERSONAL DATA,01683000,,Castle Catering Provisions,Ton Castle Council Chamber,D21FC000041015,
http://statistics.data.gov.uk/id/local-authority/29UP,Tonbridge & Malling Borough Council,12/13/2023,0011047372/4,11047372, 7.50,REDACTED PERSONAL DATA,01683000,,Castle Catering Provisions,Ton Castle Council Chamber,D21FC000041015,
http://statistics.data.gov.uk/id/local-authority/29UP,Tonbridge & Malling Borough Council,12/13/2023,0011047373/1,11047373, 1387.50,G2 Recruitment Solutions,01786000,,Temporary Staff,Legal Sals&Overheads,D01ARDR0311300,
http://statistics.data.gov.uk/id/local-authority/29UP,Tonbridge & Malling Borough Council,12/13/2023,0011047374/1,11047374, 3284.55,TMS Protection Ltd,01744300,,Office Security,Ton Castle Council Chamber,D21FC000044047,
http://statistics.data.gov.uk/id/local-authority/29UP,Tonbridge & Malling Borough Council,12/13/2023,0011047374/2,11047374, 1729.35,TMS Protection Ltd,01744300,,Office Security,Ton Castle Council Chamber,D21FC000044047,
http://statistics.data.gov.uk/id/local-authority/29UP,Tonbridge & Malling Borough Council,12/13/2023,0011047375/1,11047375, 1217.80,Sellick Partnership Group Limited,01336800,,Temporary Staff,Legal Sals&Overheads,D01ARDR0011300,
http://statistics.data.gov.uk/id/local-authority/29UP,Tonbridge & Malling Borough Council,12/13/2023,0011047376/1,11047376, 1204.40,Sellick Partnership Group Limited,01336800,,Temporary Staff,Legal Sals&Overheads,D01ARDR0011300,
http://statistics.data.gov.uk/id/local-authority/29UP,Tonbridge & Malling Borough Council,12/13/2023,0011047377/1,11047377, 2123.44,GSF SANDYLIGHT LTD,01705300,,Temporary Staff,Admin & Prop Sals&Overheads,D01AADA0511300,
http://statistics.data.gov.uk/id/local-authority/29UP,Tonbridge & Malling Borough Council,12/13/2023,0011047378/1,11047378, 242.76,KM Media Group Ltd,00053900,,Advertising General,Public Accountability,D29LRZ99944216,
http://statistics.data.gov.uk/id/local-authority/29UP,Tonbridge & Malling Borough Council,12/13/2023,0011047379/1,11047379, 665.00,Matt Stephens,01802100,,Meeting Expenses,Committee Administration,D29LL000048020,
http://statistics.data.gov.uk/id/local-authority/29UP,Tonbridge & Malling Borough Council,12/13/2023,0011047380/1,11047380, 350.00,BML Building Services Ltd,01505000,124905523,BRREP Drain and gully cleaning,PC - General,M15JAP20001975,
http://statistics.data.gov.uk/id/local-authority/29UP,Tonbridge & Malling Borough Council,12/13/2023,0011047381/1,11047381, 115.00,BML Building Services Ltd,01505000,124905523,BRREP Window/door repairs,PC - General,M15JAP20001919,
http://statistics.data.gov.uk/id/local-authority/29UP,Tonbridge & Malling Borough Council,12/13/2023,0011047382/1,11047382, 350.00,BML Building Services Ltd,01505000,124905523,BRREP Drain and gully cleaning,PC - General,M15JAP20001975,
http://statistics.data.gov.uk/id/local-authority/29UP,Tonbridge & Malling Borough Council,12/13/2023,0011047383/1,11047383, 250.00,BML Building Services Ltd,01505000,124905523,BRREP Window/door repairs,Leis Man Poult Wood Golf Centr,M15HEP20001919,
http://statistics.data.gov.uk/id/local-authority/29UP,Tonbridge & Malling Borough Council,12/13/2023,0011047384/1,11047384, 282.17,Chubb Fire & Security Ltd,00115400,174605362,BRREP Servicing-IntruderAlarm,Larkfield Leisure Centre,M15HDP20001939,
http://statistics.data.gov.uk/id/local-authority/29UP,Tonbridge & Malling Borough Council,12/13/2023,0011047385/1,11047385, 4137.15,Royal Mail,00086200,,Purchases,Mailsort Stock Account,K37BR000001002,
http://statistics.data.gov.uk/id/local-authority/29UP,Tonbridge & Malling Borough Council,12/13/2023,0011047385/2,11047385, 19.35,Royal Mail,00086200,,Purchases,Mailsort Stock Account,K37BR000001002,
http://statistics.data.gov.uk/id/local-authority/29UP,Tonbridge & Malling Borough Council,12/13/2023,0011047386/1,11047386, 58.80,Royal Mail,00086200,,Postages - Business Reply,Electoral Registration,D31MF000045003,
http://statistics.data.gov.uk/id/local-authority/29UP,Tonbridge & Malling Borough Council,12/13/2023,0011047386/2,11047386, 11.20,Royal Mail,00086200,,Purchases,Business Reply Stock Account,K14AT000001002,
http://statistics.data.gov.uk/id/local-authority/29UP,Tonbridge & Malling Borough Council,12/13/2023,0011047387/1,11047387, 150.00,BML Building Services Ltd,01505000,124905523,BRREP Response - General,Larkfield Leisure Centre,M15HDP50001997,
http://statistics.data.gov.uk/id/local-authority/29UP,Tonbridge & Malling Borough Council,12/13/2023,0011047388/1,11047388, 97.42,Atlas Facilities Managment Limited ,01075900,,Miscellaneous Services,Cleaning & Security,D21FDDD5044015,
http://statistics.data.gov.uk/id/local-authority/29UP,Tonbridge & Malling Borough Council,12/13/2023,0011047389/1,11047389, 48.71,Atlas Facilities Managment Limited ,01075900,,Miscellaneous Services,Cleaning & Security,D21FDDD5044015,
http://statistics.data.gov.uk/id/local-authority/29UP,Tonbridge & Malling Borough Council,12/13/2023,0011047390/1,11047390, 238.98,Chubb Fire & Security Ltd,00115400,174605362,BRREP Servicing-IntruderAlarm,Tonbridge Castle / CAB,M15KFP20001939,
http://statistics.data.gov.uk/id/local-authority/29UP,Tonbridge & Malling Borough Council,12/13/2023,0011047391/1,11047391, 17.90,KCS Education/CSG Global Education Ltd,01897200,408845925,Cleaning & Domestic Supplies,Cleaning & Security,D21FD000026001,
http://statistics.data.gov.uk/id/local-authority/29UP,Tonbridge & Malling Borough Council,12/13/2023,0011047392/1,11047392, 1561.36,The Oyster Partnership,01196400,,Temporary Staff,Admin & Prop Sals&Overheads,D01AADA1111300,
http://statistics.data.gov.uk/id/local-authority/29UP,Tonbridge & Malling Borough Council,12/13/2023,0011047393/1,11047393, 208.50,Biffa Waste Services Ltd,01284500,,Trade Refuse Charges,Cleaning & Security,D21FD000044008,
http://statistics.data.gov.uk/id/local-authority/29UP,Tonbridge & Malling Borough Council,12/13/2023,0011047394/1,11047394, 183.60,Biffa Waste Services Ltd,01284500,,Trade Refuse Charges,Cleaning & Security,D21FD000044008,
http://statistics.data.gov.uk/id/local-authority/29UP,Tonbridge & Malling Borough Council,12/13/2023,0011047395/1,11047395, 39.08,Biffa Waste Services Ltd,01284500,,Trade Refuse Charges,Cleaning & Security,D21FD000044008,
http://statistics.data.gov.uk/id/local-authority/29UP,Tonbridge & Malling Borough Council,12/13/2023,0011047396/1,11047396, 237.07,Initial Washroom Hygiene,00048300,,Laundry - Roller Towels,Cleaning & Security,D21FD000042003,
http://statistics.data.gov.uk/id/local-authority/29UP,Tonbridge & Malling Borough Council,12/13/2023,0011047397/1,11047397, 87.85,Biffa Waste Services Ltd,01284500,,Trade Refuse Charges,Cleaning & Security,D21FD000044008,
http://statistics.data.gov.uk/id/local-authority/29UP,Tonbridge & Malling Borough Council,12/13/2023,0011047398/1,11047398, 70.28,Biffa Waste Services Ltd,01284500,,Trade Refuse Charges,Cleaning & Security,D21FD000044008,
http://statistics.data.gov.uk/id/local-authority/29UP,Tonbridge & Malling Borough Council,12/13/2023,0011047399/1,11047399, 50.00,BML Building Services Ltd,01505000,124905523,BRREP Window/door repairs,Angel Centre,M15HAP20001919,110070619
http://statistics.data.gov.uk/id/local-authority/29UP,Tonbridge & Malling Borough Council,12/13/2023,0011047400/1,11047400, 500.00,BML Building Services Ltd,01505000,124905523,BRREP Response - General,Shops & Maisonettes,M15NAP50001997,110070613
http://statistics.data.gov.uk/id/local-authority/29UP,Tonbridge & Malling Borough Council,12/13/2023,0011047401/1,11047401, 1250.00,G Baker Roofing Ltd,01664400,522705274,BRREP Response - General,Larkfield Leisure Centre,M15HDP50001997,110070622
http://statistics.data.gov.uk/id/local-authority/29UP,Tonbridge & Malling Borough Council,12/13/2023,0011047402/1,11047402, 3250.00,Concrete & Corrosion Consultancy Practic,01558900,,BRREP General Maintenance,Tonbridge Swimming Pool,M15HBP10001900,110070615
http://statistics.data.gov.uk/id/local-authority/29UP,Tonbridge & Malling Borough Council,12/13/2023,0011047403/1,11047403, 660.00,Loxton Installations Ltd,01278800,,BRREP Serv Internal Lighting,Larkfield Leisure Centre,M15HDP20001957,110070632
http://statistics.data.gov.uk/id/local-authority/29UP,Tonbridge & Malling Borough Council,12/13/2023,0011047404/1,11047404, 255.00,Dalesauna Ltd,00026800,,BRREP Plant renewals,Larkfield Leisure Centre,M15HDP20001909,110070611
http://statistics.data.gov.uk/id/local-authority/29UP,Tonbridge & Malling Borough Council,12/13/2023,0011047405/1,11047405, 1112.00,Record UK Ltd,01116900,,BRREP Servicing-entrance doors,Larkfield Leisure Centre,M15HDP20001927,110070537
http://statistics.data.gov.uk/id/local-authority/29UP,Tonbridge & Malling Borough Council,12/13/2023,0011047406/1,11047406, 1380.00,G C Industrial Heating Services,00578100,,BRREP Plant renewals,Larkfield Leisure Centre,M15HDP20001909,110070649
http://statistics.data.gov.uk/id/local-authority/29UP,Tonbridge & Malling Borough Council,12/13/2023,0011047407/1,11047407, 3.95,KCS Education/CSG Global Education Ltd,01897200,408845925,Cleaning & Domestic Supplies,Cleaning & Security,D21FD000026001,110070404
http://statistics.data.gov.uk/id/local-authority/29UP,Tonbridge & Malling Borough Council,12/13/2023,0011047407/2,11047407, 14.75,KCS Education/CSG Global Education Ltd,01897200,408845925,Cleaning & Domestic Supplies,Cleaning & Security,D21FD000026001,110070404
http://statistics.data.gov.uk/id/local-authority/29UP,Tonbridge & Malling Borough Council,12/13/2023,0011047407/3,11047407, 479.88,KCS Education/CSG Global Education Ltd,01897200,408845925,Cleaning & Domestic Supplies,Cleaning & Security,D21FD000026001,110070404
http://statistics.data.gov.uk/id/local-authority/29UP,Tonbridge & Malling Borough Council,12/13/2023,0011047407/4,11047407, 318.80,KCS Education/CSG Global Education Ltd,01897200,408845925,Cleaning & Domestic Supplies,Cleaning & Security,D21FD000026001,110070404
http://statistics.data.gov.uk/id/local-authority/29UP,Tonbridge & Malling Borough Council,12/13/2023,0011047407/5,11047407, 37.99,KCS Education/CSG Global Education Ltd,01897200,408845925,Cleaning & Domestic Supplies,Cleaning & Security,D21FD000026001,110070404
http://statistics.data.gov.uk/id/local-authority/29UP,Tonbridge & Malling Borough Council,12/13/2023,0011047407/6,11047407, 3.95,KCS Education/CSG Global Education Ltd,01897200,408845925,Cleaning & Domestic Supplies,Cleaning & Security,D21FD000026001,110070404
http://statistics.data.gov.uk/id/local-authority/29UP,Tonbridge & Malling Borough Council,12/13/2023,0011047408/1,11047408, 19.30,KCS Education/CSG Global Education Ltd,01897200,408845925,Cleaning & Domestic Supplies,Cleaning & Security,D21FD000026001,110070605
http://statistics.data.gov.uk/id/local-authority/29UP,Tonbridge & Malling Borough Council,12/13/2023,0011047409/1,11047409, 3218.00,Westcountry Group,00656400,,Purchases,Central Stationery Stock A/c,K03AD000001002,110070643
http://statistics.data.gov.uk/id/local-authority/29UP,Tonbridge & Malling Borough Council,12/13/2023,0011047410/1,11047410, 473.29,Broadwater Technologies,01534500,,BRREP Plant renewals,Tonbridge Swimming Pool,M15HBP20001909,110070631
http://statistics.data.gov.uk/id/local-authority/29UP,Tonbridge & Malling Borough Council,12/13/2023,0011047411/1,11047411, 377.00,Broadwater Technologies,01534500,,BRREP Plant renewals,Larkfield Leisure Centre,M15HDP20001909,110070650
http://statistics.data.gov.uk/id/local-authority/29UP,Tonbridge & Malling Borough Council,12/13/2023,0011047412/1,11047412, 265.00,Swale Shutter & Door Services Ltd,01919200,,BRREP Servicing-entrance doors,Leybourne Lakes Country Park,M15HLP20001927,110070655
http://statistics.data.gov.uk/id/local-authority/29UP,Tonbridge & Malling Borough Council,12/13/2023,0011047414/1,11047414, 995.00,We Design Maps,01886700,799733748,Marketing,Information & Publicity,D32MJ000044215,110070656
http://statistics.data.gov.uk/id/local-authority/29UP,Tonbridge & Malling Borough Council,12/13/2023,0012008916/1,12008916, 29.32,Amazon EU SARL,01738400,,Purchases,Information Technology,D27KD000040101,410032532
http://statistics.data.gov.uk/id/local-authority/29UP,Tonbridge & Malling Borough Council,12/13/2023,0012008917/1,12008917, 449.90,CCS Media Ltd,00018000,,Purchases,Information Technology,D27KD000040101,410032533
http://statistics.data.gov.uk/id/local-authority/29UP,Tonbridge & Malling Borough Council,12/13/2023,0012008917/2,12008917, 2.00,CCS Media Ltd,00018000,,Delivery Expenses,Information Technology,D27KD000044069,410032533
http://statistics.data.gov.uk/id/local-authority/29UP,Tonbridge & Malling Borough Council,12/13/2023,0012008918/1,12008918, 37.45,CCS Media Ltd,00018000,,Purchases,Information Technology,D27KD000040101,410032533
http://statistics.data.gov.uk/id/local-authority/29UP,Tonbridge & Malling Borough Council,12/13/2023,0012008919/1,12008919, 65.00,CCS Media Ltd,00018000,,Purchases,Information Technology,D27KD000040101,410032501
http://statistics.data.gov.uk/id/local-authority/29UP,Tonbridge & Malling Borough Council,12/13/2023,0012008919/2,12008919, 6.95,CCS Media Ltd,00018000,,Delivery Expenses,Information Technology,D27KD000044069,410032501
http://statistics.data.gov.uk/id/local-authority/29UP,Tonbridge & Malling Borough Council,12/13/2023,0012008920/1,12008920, 5060.00,TotalMobile Limited,01725400,,Software Hire & Support,Information Technology,D27KD000044059,410032540
http://statistics.data.gov.uk/id/local-authority/29UP,Tonbridge & Malling Borough Council,12/13/2023,0021039013/1,21039013, 180.00,Arnold & Court Ltd,01411300,,Maintenance of Grounds,Open Spaces & Amenity Areas,B22LE000020402,210057462
http://statistics.data.gov.uk/id/local-authority/29UP,Tonbridge & Malling Borough Council,12/13/2023,0021039014/1,21039014, 450.00,Burslem Memorials Ltd,01013400,,Contract Payments,Ton Cemetery Memorial Safety,P05KV000009904,210057465
http://statistics.data.gov.uk/id/local-authority/29UP,Tonbridge & Malling Borough Council,12/13/2023,0021039015/1,21039015, 2400.00,Burslem Memorials Ltd,01013400,,Contract Payments,Ton Cemetery Memorial Safety,P05KV000009904,210057422
http://statistics.data.gov.uk/id/local-authority/29UP,Tonbridge & Malling Borough Council,12/13/2023,0021039016/1,21039016, 3450.00,Burslem Memorials Ltd,01013400,,Contract Payments,Ton Cemetery Memorial Safety,P05KV000009904,210057421
http://statistics.data.gov.uk/id/local-authority/29UP,Tonbridge & Malling Borough Council,12/13/2023,0021039017/1,21039017, 579.43,Landscape Services Ltd,00057600,,Grounds Maintenance Contract,Cemetery,B26MP000050103,
http://statistics.data.gov.uk/id/local-authority/29UP,Tonbridge & Malling Borough Council,12/13/2023,0021039018/1,21039018, 289.71,Landscape Services Ltd,00057600,,Grounds Maintenance Contract,Cemetery,B26MP000050103,
http://statistics.data.gov.uk/id/local-authority/29UP,Tonbridge & Malling Borough Council,12/13/2023,0021039019/1,21039019, 365.95,Landscape Services Ltd,00057600,,Grounds Maintenance Contract,Cemetery,B26MP000050103,
http://statistics.data.gov.uk/id/local-authority/29UP,Tonbridge & Malling Borough Council,12/13/2023,0021039020/3,21039020, 1764.14,KCC - L.A.S.E.R Commercial Services ,00184300,,Electricity,Leybourne Lakes Country Park,B22LK000021002,
http://statistics.data.gov.uk/id/local-authority/29UP,Tonbridge & Malling Borough Council,12/13/2023,0021039021/3,21039021, 3675.44,KCC - L.A.S.E.R Commercial Services ,00184300,,Electricity,Leybourne Lakes Country Park,B22LK000021002,
http://statistics.data.gov.uk/id/local-authority/29UP,Tonbridge & Malling Borough Council,12/13/2023,0021039022/1,21039022, 54.85,Kings Hill Garage Ltd,01546300,,Transport Repair & Maintenance,Patrolling,B22LF000030103,210057469
http://statistics.data.gov.uk/id/local-authority/29UP,Tonbridge & Malling Borough Council,12/13/2023,0021039022/2,21039022, 190.74,Kings Hill Garage Ltd,01546300,,Transport Repair & Maintenance,Patrolling,B22LF000030103,210057469
http://statistics.data.gov.uk/id/local-authority/29UP,Tonbridge & Malling Borough Council,12/13/2023,0021039023/1,21039023, 26.40,Fenland Leisure Products Ltd,01675100,,Maintenance of Play Equipment,Open Spaces & Amenity Areas,B22LE000020503,210057502
http://statistics.data.gov.uk/id/local-authority/29UP,Tonbridge & Malling Borough Council,12/13/2023,0021039024/1,21039024, 4950.00,The Original Tree Surgeons Limited,01906200,219421521,Health & Safety - Trees,Countryside/Woodland Mgt,B22LG000044045,210057467
http://statistics.data.gov.uk/id/local-authority/29UP,Tonbridge & Malling Borough Council,12/13/2023,0021039025/1,21039025, 8162.00,Coastal Nets Limited,01914800,,Initial Furniture & Equipment,Capital Renewals Leisure,P05KGBC0309906,210057375
http://statistics.data.gov.uk/id/local-authority/29UP,Tonbridge & Malling Borough Council,12/13/2023,0021039026/1,21039026, 260.00,Rumwoods Limited,00959000,,Health & Safety - Trees,Countryside/Woodland Mgt,B22LG000044045,210057452
http://statistics.data.gov.uk/id/local-authority/29UP,Tonbridge & Malling Borough Council,12/13/2023,0021039028/3,21039028, 63.36,B&Q/Screwfix Direct(TradeUKAccount),00141300,,Maintenance of Grounds,Open Spaces & Amenity Areas,B22LE000020402,
http://statistics.data.gov.uk/id/local-authority/29UP,Tonbridge & Malling Borough Council,12/13/2023,0021039029/1,21039029, 4980.00,SWS Countryside & Landscape,01567200,,Health & Safety - Trees,Countryside/Woodland Mgt,B22LG000044045,210057428
http://statistics.data.gov.uk/id/local-authority/29UP,Tonbridge & Malling Borough Council,12/13/2023,0021039029/2,21039029, 1400.00,SWS Countryside & Landscape,01567200,,Health & Safety - Trees,Countryside/Woodland Mgt,B22LG000044045,210057428
http://statistics.data.gov.uk/id/local-authority/29UP,Tonbridge & Malling Borough Council,12/13/2023,0021039030/1,21039030, 44199.61,Tonbridge & Malling Leisure Trust,01469100,,Employers Superannuation Costs,T&M Leisure Trust,B10DA000050107,
http://statistics.data.gov.uk/id/local-authority/29UP,Tonbridge & Malling Borough Council,12/13/2023,0021039031/1,21039031, 20.00,St Philips Church Tonbridge,01010300,,Maintenance of Grounds,Open Spaces & Amenity Areas,B22LE000020402,210056825
http://statistics.data.gov.uk/id/local-authority/29UP,Tonbridge & Malling Borough Council,12/13/2023,0021039031/2,21039031, 20.00,St Philips Church Tonbridge,01010300,,Maintenance of Grounds,Open Spaces & Amenity Areas,B22LE000020402,210056825
http://statistics.data.gov.uk/id/local-authority/29UP,Tonbridge & Malling Borough Council,12/13/2023,0021039031/3,21039031, 20.00,St Philips Church Tonbridge,01010300,,Maintenance of Grounds,Open Spaces & Amenity Areas,B22LE000020402,210056825
http://statistics.data.gov.uk/id/local-authority/29UP,Tonbridge & Malling Borough Council,12/13/2023,0021039031/4,21039031, 20.00,St Philips Church Tonbridge,01010300,,Maintenance of Grounds,Open Spaces & Amenity Areas,B22LE000020402,210056825
http://statistics.data.gov.uk/id/local-authority/29UP,Tonbridge & Malling Borough Council,12/13/2023,0021039032/1,21039032, 80.00,St Philips Church Tonbridge,01010300,,Maintenance of Grounds,Open Spaces & Amenity Areas,B22LE000020402,210057145
http://statistics.data.gov.uk/id/local-authority/29UP,Tonbridge & Malling Borough Council,12/13/2023,0021039033/1,21039033, 200.00,Cameron Electrical,01849600,,Maintenance of Play Equipment,Open Spaces & Amenity Areas,B22LE000020503,210057466
http://statistics.data.gov.uk/id/local-authority/29UP,Tonbridge & Malling Borough Council,12/13/2023,0021039034/1,21039034, 400.00,Cameron Electrical,01849600,,Maintenance of Play Equipment,Open Spaces & Amenity Areas,B22LE000020503,210057453
http://statistics.data.gov.uk/id/local-authority/29UP,Tonbridge & Malling Borough Council,12/13/2023,0021039035/1,21039035, 1800.00,Cameron Electrical,01849600,,Maintenance of Play Equipment,Open Spaces & Amenity Areas,B22LE000020503,210057450
http://statistics.data.gov.uk/id/local-authority/29UP,Tonbridge & Malling Borough Council,12/13/2023,0021039036/1,21039036, 275.00,Cameron Electrical,01849600,,Maintenance of Play Equipment,Haysden Country Park,B22LC000020503,210057506
http://statistics.data.gov.uk/id/local-authority/29UP,Tonbridge & Malling Borough Council,12/13/2023,0021039037/1,21039037, 142.00,HAGS SMP Ltd,00793600,,Maintenance of Play Equipment,Haysden Country Park,B22LC000020503,210057482
http://statistics.data.gov.uk/id/local-authority/29UP,Tonbridge & Malling Borough Council,12/13/2023,0021039038/3,21039038, 70.50,Initial Washroom Hygiene,00048300,,Cleaning & Domestic Supplies,Haysden Country Park,B22LC000026001,
http://statistics.data.gov.uk/id/local-authority/29UP,Tonbridge & Malling Borough Council,12/13/2023,0021039039/3,21039039, 37.36,B&Q/Screwfix Direct(TradeUKAccount),00141300,,Maintenance of Grounds,Haysden Country Park,B22LC000020402,
http://statistics.data.gov.uk/id/local-authority/29UP,Tonbridge & Malling Borough Council,12/13/2023,0021039040/3,21039040, 29.99,B&Q/Screwfix Direct(TradeUKAccount),00141300,,Tree Planting Schemes,Countryside/Woodland Mgt,B22LH000020405,
http://statistics.data.gov.uk/id/local-authority/29UP,Tonbridge & Malling Borough Council,12/13/2023,0022028314/3,22028314, 1141.66,Monitor Pest Control Ltd,01476700,,Other Expenses,Pest Control,H24SE000048010,
http://statistics.data.gov.uk/id/local-authority/29UP,Tonbridge & Malling Borough Council,12/13/2023,0022028315/1,22028315, 2130.00,1st  Steps Housing Kent,01716100,,Temporary Accommodation,Homelessness,C01AA000044051,
http://statistics.data.gov.uk/id/local-authority/29UP,Tonbridge & Malling Borough Council,12/13/2023,0022028316/1,22028316, 2531.54,The Care Group-Housing & Care Trust,01699600,,Temporary Accommodation,Homelessness,C01AA000044051,
http://statistics.data.gov.uk/id/local-authority/29UP,Tonbridge & Malling Borough Council,12/13/2023,0022028317/1,22028317, 30465.00,Social & Community Care,01768400,,Temporary Accommodation,Homelessness,C01AA000044051,
http://statistics.data.gov.uk/id/local-authority/29UP,Tonbridge & Malling Borough Council,12/13/2023,0022028318/3,22028318, 715.00,Centennial Property Ltd,01901000,,Temporary Accommodation,Homelessness,C01AA000044051,
http://statistics.data.gov.uk/id/local-authority/29UP,Tonbridge & Malling Borough Council,12/13/2023,0022028319/1,22028319, 4480.00,Kent Accommodation Ltd,01722000,,Temporary Accommodation,Homelessness,C01AA000044051,
http://statistics.data.gov.uk/id/local-authority/29UP,Tonbridge & Malling Borough Council,12/13/2023,0022028320/1,22028320, 8430.00,Less Homeless Ltd,01489300,,Temporary Accommodation,Homelessness,C01AA000044051,
http://statistics.data.gov.uk/id/local-authority/29UP,Tonbridge & Malling Borough Council,12/13/2023,0022028322/3,22028322, 0.97,Octopus Energy,01895300,,Electricity,Homelessness,C01AATNHS21002,
http://statistics.data.gov.uk/id/local-authority/29UP,Tonbridge & Malling Borough Council,12/13/2023,0022028323/1,22028323, 6146.00,Premier Property Providers,01785400,,Temporary Accommodation,Homelessness,C01AA000044051,
http://statistics.data.gov.uk/id/local-authority/29UP,Tonbridge & Malling Borough Council,12/13/2023,0022028324/3,22028324, 9720.00,Simon Niblett Lettings,00072600,,Temporary Accommodation,Homelessness,C01AA000044051,
http://statistics.data.gov.uk/id/local-authority/29UP,Tonbridge & Malling Borough Council,12/13/2023,0022028325/3,22028325, 3300.00,Simon Niblett Lettings,00072600,,Temporary Accommodation,Homelessness,C01AA000044051,
http://statistics.data.gov.uk/id/local-authority/29UP,Tonbridge & Malling Borough Council,12/13/2023,0022028326/1,22028326, 1470.00,Simply Rented Ltd ,01691400,,Temporary Accommodation,Homelessness,C01AA000044051,
http://statistics.data.gov.uk/id/local-authority/29UP,Tonbridge & Malling Borough Council,12/13/2023,0022028327/3,22028327, 12035.00,SPA CAFFE LIMITED,00127100,,Temporary Accommodation,Homelessness,C01AA000044051,
http://statistics.data.gov.uk/id/local-authority/29UP,Tonbridge & Malling Borough Council,12/13/2023,0022028328/3,22028328, 129.88,British Gas,01148500,,Electricity,Homelessness,C01AAMAUN21002,
http://statistics.data.gov.uk/id/local-authority/29UP,Tonbridge & Malling Borough Council,12/13/2023,0022028329/3,22028329, 245.00,Countrystyle Group,00835900,781981681,Collection of Card,Dry Recycling,H34SR000054008,
http://statistics.data.gov.uk/id/local-authority/29UP,Tonbridge & Malling Borough Council,12/13/2023,0022028330/1,22028330, 3996.00,House to Home Lettings Ltd ,01647600,,Temporary Accommodation,Homelessness,C01AA000044051,
http://statistics.data.gov.uk/id/local-authority/29UP,Tonbridge & Malling Borough Council,12/13/2023,0022028331/3,22028331, 400.00,Lucy and Martin Recycling LTD,01694200,,General Maintenance,Dry Recycling,H34SR000020301,
http://statistics.data.gov.uk/id/local-authority/29UP,Tonbridge & Malling Borough Council,12/13/2023,0022028332/1,22028332, 9840.00,Smart Property Professionals,01815100,,Temporary Accommodation,Homelessness,C01AA000044051,
http://statistics.data.gov.uk/id/local-authority/29UP,Tonbridge & Malling Borough Council,12/13/2023,0022028333/1,22028333, 3139.00,Tunbridge Wells Borough Council,00844600,,Temporary Staff,Env Hlth & Hsg Sals&Overheads,D01AVDV0211300,220003423
http://statistics.data.gov.uk/id/local-authority/29UP,Tonbridge & Malling Borough Council,12/13/2023,0022028334/1,22028334, 1343.73,Waste Way (Southern Ltd),01923700,,Contract Payments,Street Scene,H23SD000054001,220003415
http://statistics.data.gov.uk/id/local-authority/29UP,Tonbridge & Malling Borough Council,12/13/2023,0022028335/1,22028335, 671.86,Waste Way (Southern Ltd),01923700,,Contract Payments,Street Scene,H23SD000054001,220003422
http://statistics.data.gov.uk/id/local-authority/29UP,Tonbridge & Malling Borough Council,12/13/2023,0022028336/1,22028336, 4801.69,Ward Security LTD,01490000,,Dog Warden,Street Scene,H23SD000044100,
http://statistics.data.gov.uk/id/local-authority/29UP,Tonbridge & Malling Borough Council,12/13/2023,0022028337/1,22028337, 21088.76,Consultants in Care Ltd,01764200,,Temporary Accommodation,Homelessness,C01AAMAUN44051,
http://statistics.data.gov.uk/id/local-authority/29UP,Tonbridge & Malling Borough Council,12/13/2023,0022028338/1,22028338, 54978.00,Paramount Independent Property Suppliers,01595300,,Temporary Accommodation,Homelessness,C01AA000044051,
http://statistics.data.gov.uk/id/local-authority/29UP,Tonbridge & Malling Borough Council,12/13/2023,0022028340/3,22028340, 131.76,Peoplesafe -  Skyguard Ltd,01779900,,Purchases,Env Hlth & Hsg Sals&Overheads,D01AVDV0340101,
http://statistics.data.gov.uk/id/local-authority/29UP,Tonbridge & Malling Borough Council,12/13/2023,0022028341/3,22028341, 65.88,Peoplesafe -  Skyguard Ltd,01779900,,Minimum Energy Efficiency Proj,Private Sector Housing Renewal,C03BD000044032,
http://statistics.data.gov.uk/id/local-authority/29UP,Tonbridge & Malling Borough Council,12/13/2023,0031019891/1,31019891, 36.00,Nagels,01434000,,Stationery,Parking Off-Street,E10HA000043003,310043143
http://statistics.data.gov.uk/id/local-authority/29UP,Tonbridge & Malling Borough Council,12/13/2023,0031019891/2,31019891, 378.00,Nagels,01434000,,Stationery,Parking Off-Street,E10HA000043003,310043143
http://statistics.data.gov.uk/id/local-authority/29UP,Tonbridge & Malling Borough Council,12/13/2023,0031019891/3,31019891, 252.00,Nagels,01434000,,Stationery,Parking On-Street,E10HD000043003,310043143
http://statistics.data.gov.uk/id/local-authority/29UP,Tonbridge & Malling Borough Council,12/13/2023,0031019891/4,31019891, 24.00,Nagels,01434000,,Stationery,Parking On-Street,E10HD000043003,310043143
http://statistics.data.gov.uk/id/local-authority/29UP,Tonbridge & Malling Borough Council,12/13/2023,0031019900/1,31019900, 32.50,Workwear Express,01926200,722112783,Uniforms,Parking Off-Street,E10HA000042002,310043193
http://statistics.data.gov.uk/id/local-authority/29UP,Tonbridge & Malling Borough Council,12/13/2023,0031019900/2,31019900, 5.99,Workwear Express,01926200,722112783,Uniforms,Parking Off-Street,E10HA000042002,310043193
http://statistics.data.gov.uk/id/local-authority/29UP,Tonbridge & Malling Borough Council,12/13/2023,0031019900/3,31019900, 21.66,Workwear Express,01926200,722112783,Uniforms,Parking On-Street,E10HD000042002,310043193
http://statistics.data.gov.uk/id/local-authority/29UP,Tonbridge & Malling Borough Council,12/13/2023,0031019901/1,31019901, 258.50,Royal British Legion Industries Ltd,00139700,,Premises Repairs & Maintenance,Parking On-Street,E10HD000020601,310043188
http://statistics.data.gov.uk/id/local-authority/29UP,Tonbridge & Malling Borough Council,12/13/2023,0031019902/1,31019902, 8.73,Alfafado Ltd t/a Battery Station,01835100,,Purchases,Civil Contingencies,D33NA000040101,310043194
http://statistics.data.gov.uk/id/local-authority/29UP,Tonbridge & Malling Borough Council,12/13/2023,0031019902/2,31019902, 5.40,Alfafado Ltd t/a Battery Station,01835100,,Purchases,Civil Contingencies,D33NA000040101,310043194
http://statistics.data.gov.uk/id/local-authority/29UP,Tonbridge & Malling Borough Council,12/13/2023,0032010605/3,32010605, 1360.00,Hays Specialist Recruitment Limited,01879200,773695871,Temporary Staff,Planning Sals&Overheads,D01AJDJ0311300,
http://statistics.data.gov.uk/id/local-authority/29UP,Tonbridge & Malling Borough Council,12/13/2023,0032010606/1,32010606, 235.62,KM Media Group Ltd,00053900,,Advertising General,Development Management,A01ABZ99944216,320003510
http://statistics.data.gov.uk/id/local-authority/29UP,Tonbridge & Malling Borough Council,12/13/2023,0032010607/1,32010607, 235.62,KM Media Group Ltd,00053900,,Advertising General,Development Management,A01ABZ99944216,320003516
http://statistics.data.gov.uk/id/local-authority/29UP,Tonbridge & Malling Borough Council,12/13/2023,0032010608/1,32010608, 246.33,KM Media Group Ltd,00053900,,Advertising General,Development Management,A01ABZ99944216,320003519
http://statistics.data.gov.uk/id/local-authority/29UP,Tonbridge & Malling Borough Council,12/13/2023,0032010609/1,32010609, 182.07,KM Media Group Ltd,00053900,,Advertising General,Development Management,A01ABZ99944216,320003534
http://statistics.data.gov.uk/id/local-authority/29UP,Tonbridge & Malling Borough Council,12/13/2023,0032010610/1,32010610, 257.04,KM Media Group Ltd,00053900,,Advertising General,Development Management,A01ABZ99944216,320003538
http://statistics.data.gov.uk/id/local-authority/29UP,Tonbridge & Malling Borough Council,12/13/2023,0032010611/1,32010611, 12360.00,Jim Lynch,01903300,,Development of Local Plan,Development of Local Plan,A01AE000044023,320003524
http://statistics.data.gov.uk/id/local-authority/29UP,Tonbridge & Malling Borough Council,12/13/2023,0032010612/1,32010612, 1475.00,AECOM Limited,01918200,,Development of Local Plan,Development of Local Plan,A01AE000044023,320003514
http://statistics.data.gov.uk/id/local-authority/29UP,Tonbridge & Malling Borough Council,12/13/2023,0032010613/1,32010613, 1250.00,DHA Planning Ltd,01553900,,Professional Fees,Planning Policy,A01AF000044001,320003548
http://statistics.data.gov.uk/id/local-authority/29UP,Tonbridge & Malling Borough Council,12/13/2023,0032010614/3,32010614, 1585.50,The Oyster Partnership,01196400,,Temporary Staff,Planning Sals&Overheads,D01AJDJ0111300,
http://statistics.data.gov.uk/id/local-authority/29UP,Tonbridge & Malling Borough Council,12/13/2023,0032010615/3,32010615, 1734.94,The Oyster Partnership,01196400,,Temporary Staff,Planning Sals&Overheads,D01AJDJ0111300,
http://statistics.data.gov.uk/id/local-authority/29UP,Tonbridge & Malling Borough Council,12/13/2023,0032010616/3,32010616, 2250.00,G2 Recruitment Solutions,01786000,,Temporary Staff,Planning Sals&Overheads,D01AJDJ0011300,
http://statistics.data.gov.uk/id/local-authority/29UP,Tonbridge & Malling Borough Council,12/13/2023,0032010617/1,32010617, 108.89,Kent County Council,00322500,,Development of Local Plan,Development of Local Plan,A01AE000044023,320003522
http://statistics.data.gov.uk/id/local-authority/29UP,Tonbridge & Malling Borough Council,12/13/2023,0032010618/1,32010618, 8576.12,Kent County Council,00322500,,Development of Local Plan,Development of Local Plan,A01AE000044023,320003552
http://statistics.data.gov.uk/id/local-authority/29UP,Tonbridge & Malling Borough Council,12/13/2023,0032010619/3,32010619, 2500.00,Tunbridge Wells Borough Council,00844600,,Conservation,Conservation,A01AG000056002,
http://statistics.data.gov.uk/id/local-authority/29UP,Tonbridge & Malling Borough Council,12/13/2023,0032010620/1,32010620, 30418.00,Addington Parish Council,00001600,,Payments,S106 - Commuted Sums,M04AD000001001,
http://statistics.data.gov.uk/id/local-authority/29UP,Tonbridge & Malling Borough Council,12/13/2023,0032010621/1,32010621, 160.65,KM Media Group Ltd,00053900,,Advertising General,Development Management,A01ABZ99944216,320003575
http://statistics.data.gov.uk/id/local-authority/29UP,Tonbridge & Malling Borough Council,12/13/2023,0032010622/3,32010622, 2023.50,Vivid Resourcing,01773700,,Temporary Staff,Planning Sals&Overheads,D01AJDJ0111300,
http://statistics.data.gov.uk/id/local-authority/29UP,Tonbridge & Malling Borough Council,12/13/2023,0032010623/3,32010623, 1360.00,Hays Specialist Recruitment Limited,01879200,773695871,Temporary Staff,Planning Sals&Overheads,D01AJDJ0311300,
http://statistics.data.gov.uk/id/local-authority/29UP,Tonbridge & Malling Borough Council,12/13/2023,0032010624/3,32010624, 306.00,Hays Specialist Recruitment Limited,01879200,773695871,Temporary Staff,Planning Sals&Overheads,D01AJDJ0111300,
http://statistics.data.gov.uk/id/local-authority/29UP,Tonbridge & Malling Borough Council,12/13/2023,0041036121/1,41036121, 1102.97,Morgan Hunt UK Ltd,01086900,,Temporary Staff,Finance Sals&Overheads,D01AFDF1111300,
http://statistics.data.gov.uk/id/local-authority/29UP,Tonbridge & Malling Borough Council,12/13/2023,0041036122/1,41036122, 100.38,Adelante Software Limited,01393800,812115871,Credit Card Commission,Banking Arrangements,D43QK000044082,
http://statistics.data.gov.uk/id/local-authority/29UP,Tonbridge & Malling Borough Council,12/13/2023,0041036123/1,41036123, 5.49,KCS Education/CSG Global Education Ltd,01897200,408845925,Stationery,Finance Sals&Overheads,D01AF000043003,410032495
http://statistics.data.gov.uk/id/local-authority/29UP,Tonbridge & Malling Borough Council,12/13/2023,0041036124/1,41036124, 123.20,Zurich Municipal,01235000,,Hospitality,Mayoral & Other Member Support,D29LX000048003,
http://statistics.data.gov.uk/id/local-authority/29UP,Tonbridge & Malling Borough Council,12/13/2023,0041036125/1,41036125, 2061.24,NTT Cloud Communications UK Ltd,01794600,,Software Hire & Support,Information Technology,D27KD000044059,110069968
http://statistics.data.gov.uk/id/local-authority/29UP,Tonbridge & Malling Borough Council,12/13/2023,0041036126/1,41036126, 4.90,Tameside Metropolitan Borough,00770200,,Other Expenses,Finance Sals&Overheads,D01AFDF0648010,410032526
http://statistics.data.gov.uk/id/local-authority/29UP,Tonbridge & Malling Borough Council,12/13/2023,0041036126/2,41036126, 34.80,Tameside Metropolitan Borough,00770200,,Other Expenses,Finance Sals&Overheads,D01AFDF0648010,410032526
http://statistics.data.gov.uk/id/local-authority/29UP,Tonbridge & Malling Borough Council,12/13/2023,0041036127/1,41036127, 6531.81,NEC Software Solutions UK Ltd,01073900,202159745,Other Expenses,Housing Benefits,C05CL000048010,410032539
http://statistics.data.gov.uk/id/local-authority/29UP,Tonbridge & Malling Borough Council,12/13/2023,0041036130/1,41036130, 29.98,KCS Education/CSG Global Education Ltd,01897200,408845925,Stationery,Finance Sals&Overheads,D01AF000043003,410032534
http://statistics.data.gov.uk/id/local-authority/29UP,Tonbridge & Malling Borough Council,12/13/2023,0041036131/1,41036131, 80.00,WorldPay Ltd,01402000,991280207,Credit Card Commission,Banking Arrangements,D43QK000044082,
http://statistics.data.gov.uk/id/local-authority/29UP,Tonbridge & Malling Borough Council,12/13/2023,0041036131/2,41036131, 161.04,WorldPay Ltd,01402000,991280207,Credit Card Commission,Banking Arrangements,D43QK000044082,
http://statistics.data.gov.uk/id/local-authority/29UP,Tonbridge & Malling Borough Council,12/13/2023,0041036131/3,41036131, 0.32,WorldPay Ltd,01402000,991280207,Credit Card Commission,Banking Arrangements,D43QK000044082,
http://statistics.data.gov.uk/id/local-authority/29UP,Tonbridge & Malling Borough Council,12/13/2023,0041036132/1,41036132, 80.00,WorldPay Ltd,01402000,991280207,Credit Card Commission,Banking Arrangements,D43QK000044082,
http://statistics.data.gov.uk/id/local-authority/29UP,Tonbridge & Malling Borough Council,12/13/2023,0041036132/2,41036132, 585.36,WorldPay Ltd,01402000,991280207,Credit Card Commission,Banking Arrangements,D43QK000044082,
http://statistics.data.gov.uk/id/local-authority/29UP,Tonbridge & Malling Borough Council,12/13/2023,0041036132/3,41036132, 2.00,WorldPay Ltd,01402000,991280207,Credit Card Commission,Banking Arrangements,D43QK000044082,
http://statistics.data.gov.uk/id/local-authority/29UP,Tonbridge & Malling Borough Council,12/13/2023,0041036133/1,41036133, 80.00,WorldPay Ltd,01402000,991280207,Credit Card Commission,Banking Arrangements,D43QK000044082,
http://statistics.data.gov.uk/id/local-authority/29UP,Tonbridge & Malling Borough Council,12/13/2023,0041036133/2,41036133, 178.80,WorldPay Ltd,01402000,991280207,Credit Card Commission,Banking Arrangements,D43QK000044082,
http://statistics.data.gov.uk/id/local-authority/29UP,Tonbridge & Malling Borough Council,12/13/2023,0041036133/3,41036133, 0.64,WorldPay Ltd,01402000,991280207,Credit Card Commission,Banking Arrangements,D43QK000044082,
http://statistics.data.gov.uk/id/local-authority/29UP,Tonbridge & Malling Borough Council,12/13/2023,0041036134/1,41036134, 15000.00,The East Malling Centre/Community Larder,01168000,,Charitable / Voluntary Organis,Grants & Payments to Vol Orgn,D37PACV1947005,
http://statistics.data.gov.uk/id/local-authority/29UP,Tonbridge & Malling Borough Council,12/13/2023,0051008880/1,51008880, 399.00,Hiring People (Ptnrs of Research Ltd),01876600,161643812,Advertising General,Licences - Fee Paying,H27SHZ99944216,110070657
http://statistics.data.gov.uk/id/local-authority/29UP,Tonbridge & Malling Borough Council,12/13/2023,0051008882/1,51008882, 75.00,LABC Training,01180300,,Ext Fees/Prof & Tech,Training,D10DCDJ0213561,510010667
http://statistics.data.gov.uk/id/local-authority/29UP,Tonbridge & Malling Borough Council,12/18/2023,0041036145/1,41036145, 70.14,Allpay Limited,01816500,,Giro / Swipe Card Charges,Local Revenue & NNDR Collect,D41QA000044083,
http://statistics.data.gov.uk/id/local-authority/29UP,Tonbridge & Malling Borough Council,12/19/2023,0041036148/1,41036148, 229.20,National Westminster Bank Plc,00069400,,Bank Charges,Banking Arrangements,D43QK000044222,
http://statistics.data.gov.uk/id/local-authority/29UP,Tonbridge & Malling Borough Council,12/19/2023,0041036151/1,41036151, 2.93,WorldPay ,01568000,,Credit Card Commission,Banking Arrangements,D43QK000044082,
http://statistics.data.gov.uk/id/local-authority/29UP,Tonbridge & Malling Borough Council,12/19/2023,0041036152/1,41036152, 4044.83,WorldPay ,01568000,,Credit Card Commission,Banking Arrangements,D43QK000044082,
http://statistics.data.gov.uk/id/local-authority/29UP,Tonbridge & Malling Borough Council,12/19/2023,0041036152/2,41036152, 54.98,WorldPay ,01568000,,Credit Card Commission,Banking Arrangements,D43QK000044082,
http://statistics.data.gov.uk/id/local-authority/29UP,Tonbridge & Malling Borough Council,12/20/2023,0011047413/1,11047413, 187.00,Pillory Barn Design Studios,01898100,619155927,Marketing,Information & Publicity,D32MJ000044215,110070196
http://statistics.data.gov.uk/id/local-authority/29UP,Tonbridge & Malling Borough Council,12/20/2023,0011047416/1,11047416, 1387.50,G2 Recruitment Solutions,01786000,,Temporary Staff,Legal Sals&Overheads,D01ARDR0311300,
http://statistics.data.gov.uk/id/local-authority/29UP,Tonbridge & Malling Borough Council,12/20/2023,0011047417/1,11047417, 1204.40,Sellick Partnership Group Limited,01336800,,Temporary Staff,Legal Sals&Overheads,D01ARDR0011300,
http://statistics.data.gov.uk/id/local-authority/29UP,Tonbridge & Malling Borough Council,12/20/2023,0011047418/1,11047418, 1217.80,Sellick Partnership Group Limited,01336800,,Temporary Staff,Legal Sals&Overheads,D01ARDR0011300,
http://statistics.data.gov.uk/id/local-authority/29UP,Tonbridge & Malling Borough Council,12/20/2023,0011047419/1,11047419, 265.00,C. S. Mitchell LTD,01704800,,Initiatives,UK Shared Prosperity Fund,D52TH000048135,
http://statistics.data.gov.uk/id/local-authority/29UP,Tonbridge & Malling Borough Council,12/20/2023,0011047420/1,11047420, 2512.00,Thomson Snell & Passmore,00101700,210327030,Legal Fees,Legal Sals&Overheads,D01ARDR0044002,
http://statistics.data.gov.uk/id/local-authority/29UP,Tonbridge & Malling Borough Council,12/20/2023,0011047421/1,11047421, 4663.27,Communigrow,01547600,,Contract Payments,UK Shared Prosperity Fund,P06FNFN6009904,
http://statistics.data.gov.uk/id/local-authority/29UP,Tonbridge & Malling Borough Council,12/20/2023,0011047422/1,11047422, 655.00,Sharpe Pritchard,00600500,,Other Planning Enq - Legal Cos,Legal Sals&Overheads,D01ARDR0044146,
http://statistics.data.gov.uk/id/local-authority/29UP,Tonbridge & Malling Borough Council,12/20/2023,0011047423/1,11047423, 1387.50,G2 Recruitment Solutions,01786000,,Temporary Staff,Legal Sals&Overheads,D01ARDR0311300,
http://statistics.data.gov.uk/id/local-authority/29UP,Tonbridge & Malling Borough Council,12/20/2023,0011047424/1,11047424, 2289.77,TwoFold Limited,00518000,,Maintenance - General,Printing,D22GA000040135,
http://statistics.data.gov.uk/id/local-authority/29UP,Tonbridge & Malling Borough Council,12/20/2023,0011047425/1,11047425, 10.00,The Mayor's Charity Appeal,00943800,,Hospitality,Mayoral & Other Member Support,D29LX000048003,
http://statistics.data.gov.uk/id/local-authority/29UP,Tonbridge & Malling Borough Council,12/20/2023,0011047426/1,11047426, 72.80,Royal Mail,00086200,,Postages - Business Reply,Electoral Registration,D31MF000045003,
http://statistics.data.gov.uk/id/local-authority/29UP,Tonbridge & Malling Borough Council,12/20/2023,0011047426/2,11047426, 11.20,Royal Mail,00086200,,Purchases,Business Reply Stock Account,K14AT000001002,
http://statistics.data.gov.uk/id/local-authority/29UP,Tonbridge & Malling Borough Council,12/20/2023,0011047427/1,11047427, 1808.84,Royal Mail,00086200,,Purchases,Mailsort Stock Account,K37BR000001002,
http://statistics.data.gov.uk/id/local-authority/29UP,Tonbridge & Malling Borough Council,12/20/2023,0011047427/2,11047427, 22.79,Royal Mail,00086200,,Purchases,Mailsort Stock Account,K37BR000001002,
http://statistics.data.gov.uk/id/local-authority/29UP,Tonbridge & Malling Borough Council,12/20/2023,0011047428/1,11047428, 1507.52,The Oyster Partnership,01196400,,Temporary Staff,Admin & Prop Sals&Overheads,D01AADA1111300,
http://statistics.data.gov.uk/id/local-authority/29UP,Tonbridge & Malling Borough Council,12/20/2023,0011047429/1,11047429, 450.00,BML Building Services Ltd,01505000,124905523,BRREP Gutter Cleaning,Tonbridge Castle / CAB,M15KFP20001947,
http://statistics.data.gov.uk/id/local-authority/29UP,Tonbridge & Malling Borough Council,12/20/2023,0011047430/1,11047430, 160.32,Key Craft,01148600,,Purchases,TIC Stock Account,K18AX000001002,
http://statistics.data.gov.uk/id/local-authority/29UP,Tonbridge & Malling Borough Council,12/20/2023,0011047431/1,11047431, 1583.14,Sellick Partnership Group Limited,01336800,,Temporary Staff,Legal Sals&Overheads,D01ARDR0011300,
http://statistics.data.gov.uk/id/local-authority/29UP,Tonbridge & Malling Borough Council,12/20/2023,0011047432/1,11047432, 1204.40,Sellick Partnership Group Limited,01336800,,Temporary Staff,Legal Sals&Overheads,D01ARDR0011300,
http://statistics.data.gov.uk/id/local-authority/29UP,Tonbridge & Malling Borough Council,12/20/2023,0011047433/1,11047433, 4275.00,Hartnell Taylor Cook,01539500,,Professional Fees,Land Review,D40PS000044001,110070581
http://statistics.data.gov.uk/id/local-authority/29UP,Tonbridge & Malling Borough Council,12/20/2023,0011047434/1,11047434, 456.00,ATS Heritage,01847400,,Leasing Charges,Tonbridge Castle Gatehouse,B40TG000044038,110070251
http://statistics.data.gov.uk/id/local-authority/29UP,Tonbridge & Malling Borough Council,12/20/2023,0011047435/1,11047435, 840.00,Willow Pumps Ltd,00114100,,BRREP Servicing - Pumping Stn,Ton Sportsgrnd Bldgs / Toilets,M15HCP20001931,110070370
http://statistics.data.gov.uk/id/local-authority/29UP,Tonbridge & Malling Borough Council,12/20/2023,0011047436/1,11047436, 110.00,Triple S Lift Services,01344900,,BRREP Servicing - lifts,Angel Centre,M15HAP20001930,110070608
http://statistics.data.gov.uk/id/local-authority/29UP,Tonbridge & Malling Borough Council,12/20/2023,0011047437/1,11047437, 78.50,Triple S Lift Services,01344900,,BRREP Servicing - lifts,Gibson Building East,M15KGP20001930,110070323
http://statistics.data.gov.uk/id/local-authority/29UP,Tonbridge & Malling Borough Council,12/20/2023,0011047438/1,11047438, 180.00,Wessex Lift Co Ltd,00332600,,BRREP Servicing - lifts,Tonbridge Castle / CAB,M15KFP20001930,110070621
http://statistics.data.gov.uk/id/local-authority/29UP,Tonbridge & Malling Borough Council,12/20/2023,0011047439/1,11047439, 260.00,G C Industrial Heating Services,00578100,,BRREP Servicing - Sadia Tea,Tonbridge Castle / CAB,M15KFP20001932,110070651
http://statistics.data.gov.uk/id/local-authority/29UP,Tonbridge & Malling Borough Council,12/20/2023,0011047440/1,11047440, 411.75,Dalesauna Ltd,00026800,,BRREP Plant renewals,Larkfield Leisure Centre,M15HDP20001909,110070634
http://statistics.data.gov.uk/id/local-authority/29UP,Tonbridge & Malling Borough Council,12/20/2023,0011047441/1,11047441, 2894.00,Chillmech Limited,00978700,,BRREP Servicing-Air Condition,Leis Man Poult Wood Golf Centr,M15HEP20001935,110070612
http://statistics.data.gov.uk/id/local-authority/29UP,Tonbridge & Malling Borough Council,12/20/2023,0011047442/1,11047442, 127.00,KCC Street Lighting Dept.,01890600,,Initiatives,UK Shared Prosperity Fund,D52TH000048135,110070604
http://statistics.data.gov.uk/id/local-authority/29UP,Tonbridge & Malling Borough Council,12/20/2023,0011047443/1,11047443, 103.96,KCS Education/CSG Global Education Ltd,01897200,408845925,Cleaning & Domestic Supplies,Cleaning & Security,D21FD000026001,110070605
http://statistics.data.gov.uk/id/local-authority/29UP,Tonbridge & Malling Borough Council,12/20/2023,0011047443/2,11047443, 65.88,KCS Education/CSG Global Education Ltd,01897200,408845925,Cleaning & Domestic Supplies,Cleaning & Security,D21FD000026001,110070605
http://statistics.data.gov.uk/id/local-authority/29UP,Tonbridge & Malling Borough Council,12/20/2023,0011047443/3,11047443, 95.92,KCS Education/CSG Global Education Ltd,01897200,408845925,Cleaning & Domestic Supplies,Cleaning & Security,D21FD000026001,110070605
http://statistics.data.gov.uk/id/local-authority/29UP,Tonbridge & Malling Borough Council,12/20/2023,0011047443/4,11047443, 65.97,KCS Education/CSG Global Education Ltd,01897200,408845925,Cleaning & Domestic Supplies,Cleaning & Security,D21FD000026001,110070605
http://statistics.data.gov.uk/id/local-authority/29UP,Tonbridge & Malling Borough Council,12/20/2023,0011047443/5,11047443, 32.99,KCS Education/CSG Global Education Ltd,01897200,408845925,Cleaning & Domestic Supplies,Cleaning & Security,D21FD000026001,110070605
http://statistics.data.gov.uk/id/local-authority/29UP,Tonbridge & Malling Borough Council,12/20/2023,0011047443/6,11047443, 75.98,KCS Education/CSG Global Education Ltd,01897200,408845925,Cleaning & Domestic Supplies,Cleaning & Security,D21FD000026001,110070605
http://statistics.data.gov.uk/id/local-authority/29UP,Tonbridge & Malling Borough Council,12/20/2023,0011047443/7,11047443, 26.98,KCS Education/CSG Global Education Ltd,01897200,408845925,Cleaning & Domestic Supplies,Cleaning & Security,D21FD000026001,110070605
http://statistics.data.gov.uk/id/local-authority/29UP,Tonbridge & Malling Borough Council,12/20/2023,0011047443/8,11047443, 7.90,KCS Education/CSG Global Education Ltd,01897200,408845925,Cleaning & Domestic Supplies,Cleaning & Security,D21FD000026001,110070605
http://statistics.data.gov.uk/id/local-authority/29UP,Tonbridge & Malling Borough Council,12/20/2023,0011047443/9,11047443, 1.90,KCS Education/CSG Global Education Ltd,01897200,408845925,Cleaning & Domestic Supplies,Cleaning & Security,D21FD000026001,110070605
http://statistics.data.gov.uk/id/local-authority/29UP,Tonbridge & Malling Borough Council,12/20/2023,0011047444/1,11047444, 2560.00,Quality Education Solutions Ltd T/A QES,01927100,811255268,Safeguarding,Safeguarding,D30SG000047018,110070677
http://statistics.data.gov.uk/id/local-authority/29UP,Tonbridge & Malling Borough Council,12/20/2023,0011047445/1,11047445, 4500.00,Hartnell Taylor Cook,01539500,,Professional Fees,Land Review,D40PS000044001,110070603
http://statistics.data.gov.uk/id/local-authority/29UP,Tonbridge & Malling Borough Council,12/20/2023,0011047446/1,11047446, 5365.98,KCS - KCC,00054200,,Electricity,Buildings,D21FEDD5021002,
http://statistics.data.gov.uk/id/local-authority/29UP,Tonbridge & Malling Borough Council,12/20/2023,0011047447/1,11047447, 3338.42,KCS - KCC,00054200,,Electricity,Buildings,D21FEDD6021002,
http://statistics.data.gov.uk/id/local-authority/29UP,Tonbridge & Malling Borough Council,12/20/2023,0011047448/1,11047448, 5751.24,KCS - KCC,00054200,,Electricity,Buildings,D21FEDD1021002,
http://statistics.data.gov.uk/id/local-authority/29UP,Tonbridge & Malling Borough Council,12/20/2023,0011047449/1,11047449, 8517.46,KCS - KCC,00054200,,Gas,Buildings,D21FEDD1021003,
http://statistics.data.gov.uk/id/local-authority/29UP,Tonbridge & Malling Borough Council,12/20/2023,0011047450/1,11047450, 750.00,Bracketts,00703500,,Professional Fees,Land Review,D40PS000044001,110070287
http://statistics.data.gov.uk/id/local-authority/29UP,Tonbridge & Malling Borough Council,12/20/2023,0011047451/1,11047451, 1983.00,Kestrel Home Improvements,01927800,,Contract Payments,UK Shared Prosperity Fund,P06FNFN4009904,
http://statistics.data.gov.uk/id/local-authority/29UP,Tonbridge & Malling Borough Council,12/20/2023,0011047452/1,11047452, 1250.00,Bracketts,00703500,,Professional Fees,Tonbridge Castle Gatehouse,B40TG000044001,110070587
http://statistics.data.gov.uk/id/local-authority/29UP,Tonbridge & Malling Borough Council,12/20/2023,0011047453/1,11047453, 1870.93,KCS - KCC,00054200,,Gas,Buildings,D21FEDD6021003,
http://statistics.data.gov.uk/id/local-authority/29UP,Tonbridge & Malling Borough Council,12/20/2023,0011047454/1,11047454, 305.50,KCS - KCC,00054200,,Estate Management Charge,Land Review,D40PS000020400,
http://statistics.data.gov.uk/id/local-authority/29UP,Tonbridge & Malling Borough Council,12/20/2023,0011047455/1,11047455, 27302.00,GEP Environmental Ltd,01912500,,Contract Payments,De Carbonising Council Offices,P06AM000009904,110070510
http://statistics.data.gov.uk/id/local-authority/29UP,Tonbridge & Malling Borough Council,12/20/2023,0011047455/2,11047455, 22290.00,GEP Environmental Ltd,01912500,,Contract Payments,De Carbonising Council Offices,P06AM000009904,110070510
http://statistics.data.gov.uk/id/local-authority/29UP,Tonbridge & Malling Borough Council,12/20/2023,0012008921/1,12008921, 299.80,CCS Media Ltd,00018000,,Purchases,Information Technology,D27KD000040101,410032541
http://statistics.data.gov.uk/id/local-authority/29UP,Tonbridge & Malling Borough Council,12/20/2023,0012008921/2,12008921, 2.00,CCS Media Ltd,00018000,,Delivery Expenses,Information Technology,D27KD000044069,410032541
http://statistics.data.gov.uk/id/local-authority/29UP,Tonbridge & Malling Borough Council,12/20/2023,0012008922/1,12008922, 10.47,CCS Media Ltd,00018000,,Purchases,Information Technology,D27KD000040101,410032541
http://statistics.data.gov.uk/id/local-authority/29UP,Tonbridge & Malling Borough Council,12/20/2023,0012008923/1,12008923, 2061.24,NTT Cloud Communications UK Ltd,01794600,,Software Hire & Support,Information Technology,D27KD000044059,110069968
http://statistics.data.gov.uk/id/local-authority/29UP,Tonbridge & Malling Borough Council,12/20/2023,0012008924/1,12008924, 16104.88,Phoenix Software Ltd,00077400,755349015,Software Hire & Support,Information Technology,D27KD000044059,
http://statistics.data.gov.uk/id/local-authority/29UP,Tonbridge & Malling Borough Council,12/20/2023,0021039042/1,21039042, 495.00,David Hodgkinson Photographer,01068900,,Marketing,Events Development,B41TJZ99944215,210057521
http://statistics.data.gov.uk/id/local-authority/29UP,Tonbridge & Malling Borough Council,12/20/2023,0021039043/1,21039043, 554.97,KCS Education/CSG Global Education Ltd,01897200,408845925,Events Support,Events Development,B41TJ000044041,210057357
http://statistics.data.gov.uk/id/local-authority/29UP,Tonbridge & Malling Borough Council,12/20/2023,0021039044/1,21039044, 527.40,G.L. & R.G. Bourne,00737500,,Gates / Security,Haysden Country Park,B22LC000044017,210057185
http://statistics.data.gov.uk/id/local-authority/29UP,Tonbridge & Malling Borough Council,12/20/2023,0021039045/1,21039045, 72.30,G.L. & R.G. Bourne,00737500,,Gates / Security,Haysden Country Park,B22LC000044017,210057185
http://statistics.data.gov.uk/id/local-authority/29UP,Tonbridge & Malling Borough Council,12/20/2023,0021039047/1,21039047, 23899.38,Kompan Ltd,01741600,382219257,Initial Furniture & Equipment,Capital Renewals Leisure,P05KGBC0509906,210057368
http://statistics.data.gov.uk/id/local-authority/29UP,Tonbridge & Malling Borough Council,12/20/2023,0021039048/1,21039048, 329.00,Meditelle Ltd,01417800,,Initial Furniture & Equipment,Capital Renewals Leisure,P05KGBC0209906,210057424
http://statistics.data.gov.uk/id/local-authority/29UP,Tonbridge & Malling Borough Council,12/20/2023,0021039049/1,21039049, 1446.00,M & M Developers LLP,01266500,,Initial Furniture & Equipment,Capital Renewals Leisure,P05KGBC0509906,210057477
http://statistics.data.gov.uk/id/local-authority/29UP,Tonbridge & Malling Borough Council,12/20/2023,0021039050/1,21039050, 1180.00,M & M Developers LLP,01266500,,Initial Furniture & Equipment,Capital Renewals Leisure,P05KGBC0509906,210057478
http://statistics.data.gov.uk/id/local-authority/29UP,Tonbridge & Malling Borough Council,12/20/2023,0021039051/1,21039051, 1712.00,M & M Developers LLP,01266500,,Initial Furniture & Equipment,Capital Renewals Leisure,P05KGBC0509906,210057494
http://statistics.data.gov.uk/id/local-authority/29UP,Tonbridge & Malling Borough Council,12/20/2023,0021039052/1,21039052, 3944.00,M & M Developers LLP,01266500,,Initial Furniture & Equipment,Capital Renewals Leisure,P05KGBC0509906,210057479
http://statistics.data.gov.uk/id/local-authority/29UP,Tonbridge & Malling Borough Council,12/20/2023,0021039053/1,21039053, 1662.00,M & M Developers LLP,01266500,,Initial Furniture & Equipment,Capital Renewals Leisure,P05KGBC0509906,210057474
http://statistics.data.gov.uk/id/local-authority/29UP,Tonbridge & Malling Borough Council,12/20/2023,0021039054/1,21039054, 2792.00,M & M Developers LLP,01266500,,Initial Furniture & Equipment,Capital Renewals Leisure,P05KGBC0509906,210057476
http://statistics.data.gov.uk/id/local-authority/29UP,Tonbridge & Malling Borough Council,12/20/2023,0021039055/1,21039055, 720.00,M & M Developers LLP,01266500,,Initial Furniture & Equipment,Capital Renewals Leisure,P05KGBC0509906,210057475
http://statistics.data.gov.uk/id/local-authority/29UP,Tonbridge & Malling Borough Council,12/20/2023,0021039056/1,21039056, 500.00,M & M Developers LLP,01266500,,Initial Furniture & Equipment,Capital Renewals Leisure,P05KGBC0509906,210057488
http://statistics.data.gov.uk/id/local-authority/29UP,Tonbridge & Malling Borough Council,12/20/2023,0021039057/1,21039057, 2904.00,M & M Developers LLP,01266500,,Initial Furniture & Equipment,Capital Renewals Leisure,P05KGBC0509906,210057487
http://statistics.data.gov.uk/id/local-authority/29UP,Tonbridge & Malling Borough Council,12/20/2023,0021039058/1,21039058, 1712.00,M & M Developers LLP,01266500,,Initial Furniture & Equipment,Capital Renewals Leisure,P05KGBC0509906,210057495
http://statistics.data.gov.uk/id/local-authority/29UP,Tonbridge & Malling Borough Council,12/20/2023,0021039059/1,21039059, 58.49,B&Q/Screwfix Direct(TradeUKAccount),00141300,,Maintenance of Grounds,Open Spaces & Amenity Areas,B22LE000020402,
http://statistics.data.gov.uk/id/local-authority/29UP,Tonbridge & Malling Borough Council,12/20/2023,0021039059/2,21039059, 54.83,B&Q/Screwfix Direct(TradeUKAccount),00141300,,Maintenance of Grounds,Open Spaces & Amenity Areas,B22LE000020402,
http://statistics.data.gov.uk/id/local-authority/29UP,Tonbridge & Malling Borough Council,12/20/2023,0022028342/1,22028342, 10980.00,Elite Complete Build LTD,01625900,247542789,Other Expenses,Disabled Facilities Grant Mand,P03AC000009908,
http://statistics.data.gov.uk/id/local-authority/29UP,Tonbridge & Malling Borough Council,12/20/2023,0022028343/1,22028343, 6045.56,Daytrad,01425400,,Other Expenses,Disabled Facilities Grant Mand,P03AC000009908,
http://statistics.data.gov.uk/id/local-authority/29UP,Tonbridge & Malling Borough Council,12/20/2023,0022028344/1,22028344, 1088.20,Town & Country Housing Group,01385400,,Other Expenses,Disabled Facilities Grant Mand,P03AC000009908,
http://statistics.data.gov.uk/id/local-authority/29UP,Tonbridge & Malling Borough Council,12/20/2023,0022028345/1,22028345, 8644.45,Lifestyle (KENT) LTD,01348800,,Other Expenses,Disabled Facilities Grant Mand,P03AC000009908,
http://statistics.data.gov.uk/id/local-authority/29UP,Tonbridge & Malling Borough Council,12/20/2023,0022028346/1,22028346, 1556.00,Town & Country Housing Group,01385400,,Other Expenses,Disabled Facilities Grant Mand,P03AC000009908,
http://statistics.data.gov.uk/id/local-authority/29UP,Tonbridge & Malling Borough Council,12/20/2023,0022028347/3,22028347, 30.00,REDACTED PERSONAL DATA,01773200,,Repairs & Mtce to Buildings,Homelessness,C01AATNHS20101,
http://statistics.data.gov.uk/id/local-authority/29UP,Tonbridge & Malling Borough Council,12/20/2023,0022028348/1,22028348, 10000.00,Altair Consultancy & Advisory Services,01915000,222667806,Professional Fees,Housing Strategy,C12FB000044001,
http://statistics.data.gov.uk/id/local-authority/29UP,Tonbridge & Malling Borough Council,12/20/2023,0022028349/1,22028349, 1107.80,Lucy and Martin Recycling LTD,01694200,,Vehicle Licences,Dry Recycling,H34SR000030105,
http://statistics.data.gov.uk/id/local-authority/29UP,Tonbridge & Malling Borough Council,12/20/2023,0022028350/1,22028350, 23.49,Maidstone Borough Council,01173700,,Council Tax,Homelessness,C01AAMAUN23002,
http://statistics.data.gov.uk/id/local-authority/29UP,Tonbridge & Malling Borough Council,12/20/2023,0022028351/1,22028351, 27.40,Maidstone Borough Council,01173700,,Council Tax,Homelessness,C01AAMAUN23002,
http://statistics.data.gov.uk/id/local-authority/29UP,Tonbridge & Malling Borough Council,12/20/2023,0022028352/1,22028352, 626.35,Maidstone Borough Council,01173700,,Council Tax,Homelessness,C01AAMAUN23002,
http://statistics.data.gov.uk/id/local-authority/29UP,Tonbridge & Malling Borough Council,12/20/2023,0022028353/1,22028353, 22.00,REDACTED PERSONAL DATA,00713700,,Funeral Expenses,Public Health Act 1984,H26SG000054002,
http://statistics.data.gov.uk/id/local-authority/29UP,Tonbridge & Malling Borough Council,12/20/2023,0022028354/1,22028354, 389.60,Posturite UK Ltd,00970300,,Health General,St Scene & Leis Sals&Overheads,D01AGDG3044049,220003367
http://statistics.data.gov.uk/id/local-authority/29UP,Tonbridge & Malling Borough Council,12/20/2023,0022028354/2,22028354, 59.95,Posturite UK Ltd,00970300,,Health General,St Scene & Leis Sals&Overheads,D01AGDG3044049,220003367
http://statistics.data.gov.uk/id/local-authority/29UP,Tonbridge & Malling Borough Council,12/20/2023,0022028354/3,22028354, 101.99,Posturite UK Ltd,00970300,,Health General,St Scene & Leis Sals&Overheads,D01AGDG3044049,220003367
http://statistics.data.gov.uk/id/local-authority/29UP,Tonbridge & Malling Borough Council,12/20/2023,0022028355/1,22028355, 138.87,South East Water Ltd,01330300,,Water Sampling,Environmental Protection,H32SN000054010,
http://statistics.data.gov.uk/id/local-authority/29UP,Tonbridge & Malling Borough Council,12/20/2023,0022028356/1,22028356, 530.00,Town & Country Housing Group,01385400,,Countywide DFG Project,Private Sector Housing Renewal,C03BD000044031,
http://statistics.data.gov.uk/id/local-authority/29UP,Tonbridge & Malling Borough Council,12/20/2023,0022028357/1,22028357, 1682.00,Clarkes Funeral Service,00021200,,Funeral Expenses,Public Health Act 1984,H26SG000054002,220003425
http://statistics.data.gov.uk/id/local-authority/29UP,Tonbridge & Malling Borough Council,12/20/2023,0022028358/1,22028358, 490.00,Countrystyle Group,00835900,781981681,Collection of Card,Dry Recycling,H34SR000054008,
http://statistics.data.gov.uk/id/local-authority/29UP,Tonbridge & Malling Borough Council,12/20/2023,0022028359/1,22028359, 455.00,Acoustic Calibration Services Ltd,00775900,,Maintenance - General,Environmental Protection,H32SN000040135,220003412
http://statistics.data.gov.uk/id/local-authority/29UP,Tonbridge & Malling Borough Council,12/20/2023,0022028360/3,22028360, 93.50,FirstAid4Less,01509300,,Health General,Food & Safety - General,H35SW000044049,
http://statistics.data.gov.uk/id/local-authority/29UP,Tonbridge & Malling Borough Council,12/20/2023,0022028361/1,22028361, 428.75,The Speedy Kitchen,01893600,,Healthy Living Initiatives,Public Health - Healthy Living,H40SY000048145,220003420
http://statistics.data.gov.uk/id/local-authority/29UP,Tonbridge & Malling Borough Council,12/20/2023,0022028362/1,22028362, 68.54,British Telecommunications Plc,00012800,,Purchases,Homelessness,C01AATNPR40101,
http://statistics.data.gov.uk/id/local-authority/29UP,Tonbridge & Malling Borough Council,12/20/2023,0022028363/1,22028363, 317.65,Kent County Council,00322500,,Food Sampling,Food & Safety - Food Safety,H35SX000054011,220003408
http://statistics.data.gov.uk/id/local-authority/29UP,Tonbridge & Malling Borough Council,12/20/2023,0022028364/1,22028364, 28449.66,Porchlight,01416700,,Professional Fees,Homelessness,C01AAROUG44001,
http://statistics.data.gov.uk/id/local-authority/29UP,Tonbridge & Malling Borough Council,12/20/2023,0022028365/1,22028365, 17540.00,Mr Peter Williams ,01657400,,Other Expenses,Disabled Facilities Grant Mand,P03AC000009908,
http://statistics.data.gov.uk/id/local-authority/29UP,Tonbridge & Malling Borough Council,12/20/2023,0022028366/1,22028366, 16690.00,Ascendit Lifts Ltd,00446600,,Other Expenses,Disabled Facilities Grant Mand,P03AC000009908,
http://statistics.data.gov.uk/id/local-authority/29UP,Tonbridge & Malling Borough Council,12/20/2023,0022028367/1,22028367, 3540.00,Coldwell & Shawyer Ltd,01740300,231920435,Other Expenses,Disabled Facilities Grant Mand,P03AC000009908,
http://statistics.data.gov.uk/id/local-authority/29UP,Tonbridge & Malling Borough Council,12/20/2023,0022028368/1,22028368, 3252.30,Town & Country Housing Group,01385400,,Other Expenses,Disabled Facilities Grant Mand,P03AC000009908,
http://statistics.data.gov.uk/id/local-authority/29UP,Tonbridge & Malling Borough Council,12/20/2023,0022028369/1,22028369, 225.00,Tonbridge & Malling Leisure Trust,01469100,,Professional Fees,Homelessness,C01AAROUG44001,
http://statistics.data.gov.uk/id/local-authority/29UP,Tonbridge & Malling Borough Council,12/20/2023,0022028369/2,22028369, 22.33,Tonbridge & Malling Leisure Trust,01469100,,Professional Fees,Homelessness,C01AAROUG44001,
http://statistics.data.gov.uk/id/local-authority/29UP,Tonbridge & Malling Borough Council,12/20/2023,0022028370/1,22028370, 21.99,KCS Education/CSG Global Education Ltd,01897200,408845925,Stationery,Env Hlth & Hsg Sals&Overheads,D01AVDV0643003,220003427
http://statistics.data.gov.uk/id/local-authority/29UP,Tonbridge & Malling Borough Council,12/20/2023,0031019903/1,31019903, 5124.30,G4S Cash Solutions ( UK ) Ltd,01398400,,Cash Collection,Parking Off-Street,E10HA000044007,
http://statistics.data.gov.uk/id/local-authority/29UP,Tonbridge & Malling Borough Council,12/20/2023,0031019904/1,31019904, 30.62,B&Q/Screwfix Direct(TradeUKAccount),00141300,,Purchases,Parking Off-Street,E10HA000040101,
http://statistics.data.gov.uk/id/local-authority/29UP,Tonbridge & Malling Borough Council,12/20/2023,0031019907/1,31019907, 516.12,CDER Group,01773300,,Adjudication & Enforcement Ser,Parking Off-Street,E10HA000044230,
http://statistics.data.gov.uk/id/local-authority/29UP,Tonbridge & Malling Borough Council,12/20/2023,0031019908/1,31019908, 1992.00,Derbyshire Aggregates,01259900,,Winter Maintenance,Parking Off-Street,E10HA000020701,310043147
http://statistics.data.gov.uk/id/local-authority/29UP,Tonbridge & Malling Borough Council,12/20/2023,0031019908/2,31019908, 880.00,Derbyshire Aggregates,01259900,,Winter Maintenance,Parking Off-Street,E10HA000020701,310043147
http://statistics.data.gov.uk/id/local-authority/29UP,Tonbridge & Malling Borough Council,12/20/2023,0031019909/1,31019909, 710.00,Archway Highway Services Ltd,01398000,,Premises Repairs & Maintenance,Parking On-Street,E10HD000020601,310043197
http://statistics.data.gov.uk/id/local-authority/29UP,Tonbridge & Malling Borough Council,12/20/2023,0031019909/2,31019909, 130.00,Archway Highway Services Ltd,01398000,,Premises Repairs & Maintenance,Parking On-Street,E10HD000020601,310043197
http://statistics.data.gov.uk/id/local-authority/29UP,Tonbridge & Malling Borough Council,12/20/2023,0031019910/1,31019910, 125.50,C. S. Mitchell LTD,01704800,,BRREP Servicing - ext lighting,Tonbridge Castle / CAB,M15KFP20001941,310043155
http://statistics.data.gov.uk/id/local-authority/29UP,Tonbridge & Malling Borough Council,12/20/2023,0031019911/1,31019911, 780.00,Derbyshire Aggregates,01259900,,Winter Maintenance,Parking Off-Street,E10HA000020701,310043190
http://statistics.data.gov.uk/id/local-authority/29UP,Tonbridge & Malling Borough Council,12/20/2023,0031019911/2,31019911, 1992.00,Derbyshire Aggregates,01259900,,Winter Maintenance,Parking Off-Street,E10HA000020701,310043190
http://statistics.data.gov.uk/id/local-authority/29UP,Tonbridge & Malling Borough Council,12/20/2023,0031019912/3,31019912, 304.91,Npower Ltd,01675800,,Electricity,Parking Off-Street,E10HA000021002,
http://statistics.data.gov.uk/id/local-authority/29UP,Tonbridge & Malling Borough Council,12/20/2023,0031019913/3,31019913, 124.18,Npower Ltd,01675800,,Electricity,Parking Off-Street,E10HA000021002,
http://statistics.data.gov.uk/id/local-authority/29UP,Tonbridge & Malling Borough Council,12/20/2023,0031019914/3,31019914, 66.99,Npower Ltd,01675800,,Electricity,Parking Off-Street,E10HA000021002,
http://statistics.data.gov.uk/id/local-authority/29UP,Tonbridge & Malling Borough Council,12/20/2023,0031019916/3,31019916, 72.99,Shell U.K. Oil Products Limited,01673300,,"Petrol, Diesel & Oil",Patrolling,B22LF000030106,
http://statistics.data.gov.uk/id/local-authority/29UP,Tonbridge & Malling Borough Council,12/20/2023,0031019916/4,31019916, 70.95,Shell U.K. Oil Products Limited,01673300,,"Petrol, Diesel & Oil",Parking Off-Street,E10HA000030106,
http://statistics.data.gov.uk/id/local-authority/29UP,Tonbridge & Malling Borough Council,12/20/2023,0031019916/5,31019916, 70.95,Shell U.K. Oil Products Limited,01673300,,"Petrol, Diesel & Oil",Parking On-Street,E10HD000030106,
http://statistics.data.gov.uk/id/local-authority/29UP,Tonbridge & Malling Borough Council,12/20/2023,0031019917/1,31019917, 658.35,SKF Contractors Ltd,00092000,621768141,Repair & Mtce of Fixed Plant,Boro Highways & Emergency Oper,E01AA000020501,310043189
http://statistics.data.gov.uk/id/local-authority/29UP,Tonbridge & Malling Borough Council,12/20/2023,0031019918/1,31019918, 1614.45,G & G Signs,01178400,,Purchases,Boro Highways & Emergency Oper,E01AA000040101,310043185
http://statistics.data.gov.uk/id/local-authority/29UP,Tonbridge & Malling Borough Council,12/20/2023,0032010625/1,32010625, 1681.88,Carrington West Limited,01844500,,Temporary Staff,Planning Sals&Overheads,D01AJDJ0111300,
http://statistics.data.gov.uk/id/local-authority/29UP,Tonbridge & Malling Borough Council,12/20/2023,0032010626/1,32010626, 543.38,Carrington West Limited,01844500,,Temporary Staff,Planning Sals&Overheads,D01AJDJ0111300,
http://statistics.data.gov.uk/id/local-authority/29UP,Tonbridge & Malling Borough Council,12/20/2023,0032010627/1,32010627, 1504.00,Carrington West Limited,01844500,,Temporary Staff,Planning Sals&Overheads,D01AJDJ0111300,
http://statistics.data.gov.uk/id/local-authority/29UP,Tonbridge & Malling Borough Council,12/20/2023,0032010628/1,32010628, 87206.74,Kent County Council,00322500,,Payments,S106 - Commuted Sums,M04AD000001001,320003574
http://statistics.data.gov.uk/id/local-authority/29UP,Tonbridge & Malling Borough Council,12/20/2023,0032010629/1,32010629, 1603.65,The Oyster Partnership,01196400,,Temporary Staff,Planning Sals&Overheads,D01AJDJ0111300,
http://statistics.data.gov.uk/id/local-authority/29UP,Tonbridge & Malling Borough Council,12/20/2023,0032010630/1,32010630, 1842.92,The Oyster Partnership,01196400,,Temporary Staff,Planning Sals&Overheads,D01AJDJ0111300,
http://statistics.data.gov.uk/id/local-authority/29UP,Tonbridge & Malling Borough Council,12/20/2023,0032010631/1,32010631, 6120.00,TSC Designs,01602800,359305975,Professional Fees,Building Control,A01AD000044001,
http://statistics.data.gov.uk/id/local-authority/29UP,Tonbridge & Malling Borough Council,12/20/2023,0032010632/1,32010632, 2251.50,Vivid Resourcing,01773700,,Temporary Staff,Planning Sals&Overheads,D01AJDJ0111300,
http://statistics.data.gov.uk/id/local-authority/29UP,Tonbridge & Malling Borough Council,12/20/2023,0032010633/1,32010633, 1164.38,Carrington West Limited,01844500,,Temporary Staff,Planning Sals&Overheads,D01AJDJ0111300,
http://statistics.data.gov.uk/id/local-authority/29UP,Tonbridge & Malling Borough Council,12/20/2023,0032010634/1,32010634, 1504.00,Carrington West Limited,01844500,,Temporary Staff,Planning Sals&Overheads,D01AJDJ0111300,
http://statistics.data.gov.uk/id/local-authority/29UP,Tonbridge & Malling Borough Council,12/20/2023,0032010635/3,32010635, 2250.00,G2 Recruitment Solutions,01786000,,Temporary Staff,Planning Sals&Overheads,D01AJDJ0011300,
http://statistics.data.gov.uk/id/local-authority/29UP,Tonbridge & Malling Borough Council,12/20/2023,0032010636/1,32010636, 23880.00,Nathaniel Lichfield & Partners Ltd,00070000,,Development of Local Plan,Development of Local Plan,A01AE000044023,320003523
http://statistics.data.gov.uk/id/local-authority/29UP,Tonbridge & Malling Borough Council,12/20/2023,0032010637/1,32010637, 51.52,Redrow Homes,01681500,,Payments,S106 - Commuted Sums,M04AD000001001,
http://statistics.data.gov.uk/id/local-authority/29UP,Tonbridge & Malling Borough Council,12/20/2023,0032010638/1,32010638, 182.07,KM Media Group Ltd,00053900,,Advertising General,Development Management,A01ABZ99944216,320003576
http://statistics.data.gov.uk/id/local-authority/29UP,Tonbridge & Malling Borough Council,12/20/2023,0041036153/1,41036153, 998.15,King & Shaxson Investments,01411100,,Professional Fees,Treasury Management,D43QT000044001,
http://statistics.data.gov.uk/id/local-authority/29UP,Tonbridge & Malling Borough Council,12/20/2023,0041036154/1,41036154, 15.00,HSBC Bank Plc,01740800,,Bank Charges,Banking Arrangements,D43QK000044222,
http://statistics.data.gov.uk/id/local-authority/29UP,Tonbridge & Malling Borough Council,12/20/2023,0041036158/1,41036158, 20.19,WorldPay Ltd,01402000,991280207,Credit Card Commission,Banking Arrangements,D43QK000044082,
http://statistics.data.gov.uk/id/local-authority/29UP,Tonbridge & Malling Borough Council,12/20/2023,0051008883/1,51008883, 1000.00,Improvement and Development Agency,01482800,,Ext Fees/General,Training,D10DC000013567,510010637
http://statistics.data.gov.uk/id/local-authority/29UP,Tonbridge & Malling Borough Council,12/20/2023,0051008884/1,51008884, 399.00,Hiring People (Ptnrs of Research Ltd),01876600,161643812,Recruitment Advertising,Recruitment Expenses,D10DADB0013110,510010668
http://statistics.data.gov.uk/id/local-authority/29UP,Tonbridge & Malling Borough Council,12/22/2023,0041036160/1,41036160, 2596.00,H.M. Revenue & Customs,00048400,,Levy Payment,Apprenticeship Scheme,D10DE000013700,
http://statistics.data.gov.uk/id/local-authority/29UP,Tonbridge & Malling Borough Council,12/29/2023,0041036164/1,41036164, 68.00,National Westminster Bank Plc,00069400,,Bank Charges,Banking Arrangements,D43QK000044222,
